{"text_format":"1","workbook":"xlsx","n_sheets":6,"sheets":["Instructions","Entry Sheet","Bill Print","Calculation sheet","Annual Report","Sheet5"],"not_rendered":{"charts":0,"images":0,"macros":1,"external_links":1,"defined_names":3,"comments":1,"pivot_tables":0},"unopened":[],"bounds":{"document_bytes":16777216,"sheet_cells":100000,"rows_first":2000,"rows_last":500,"rows_between":2000,"halvings":0,"cell_chars":16384,"cell_head_chars":4096},"cells_cut":0,"cells_raw":0,"read":"whole","date_system":"1900"}

{"sheet":"Instructions","index":0,"n_rows":10,"n_cols":1,"rows_kept":10,"cut":false,"hidden":false,"merged":[]}
["Instructions"]
["Kindly read All Instructions before Use Report Card Utitly"]
["1. To Fill All Required Data Use  Entry Sheet "]
["2. Fill Data only In Yellow Cell."]
["3. Select Month , Year And Day on Which Kheer is prepared for students"]
["4. in Entry Sheet Enter Date wise No. of Students to whom Served Meal (Yellow Cells). Left Cell Blank On Holidays "]
["5. Now Goto Bill Print Sheet To Print Bill. There are two option First Auto Bill - No Need To do any think just take print or Make pdfSecond is Custom Bill - Where you can Fill Custom rate of items. I Custom Bill you have to Match Bill Amount with Montly cost "]
["6. Calculation Sheet is Just to Show Daily And Mothly Consumtion of Various Items Used in MDM"]
["7. If any Query/Suggestion Please Email Us at abhi072011@gmail.com"]
["8. Visit Website for More Tools "]

{"sheet":"Entry Sheet","index":1,"n_rows":53,"n_cols":23,"rows_kept":53,"cut":false,"hidden":false,"merged":[[14,17,15,17],[32,0,33,0],[32,1,33,1],[34,0,35,0],[34,1,35,1],[8,3,8,15],[36,0,37,0],[36,1,37,1],[38,0,39,0],[38,1,39,1],[4,13,4,14],[4,16,4,17],[6,9,6,10],[6,13,6,14],[6,16,6,17],[0,0,0,8],[2,1,2,7],[12,0,12,1],[0,9,0,15],[0,16,0,17],[2,9,2,10],[2,13,2,15],[2,16,2,18],[9,3,9,13],[11,4,11,9],[11,13,11,14],[4,1,4,7],[6,1,6,7],[7,9,7,10],[8,16,8,17],[4,9,4,10]]}
["ਮਿਡ-ਡੇ-ਮੀਲ kYlkulytr (pRwiemrI)",null,null,null,null,null,null,null,null,"ਇਸ ਐਂਟਰੀ ਸ਼ੀਟ ਦੇ ਪੀਲੇ ਖਾਨਿਆਂ ਵਿੱਚ twiep kਰੋ ਅਤੇ ib`l ਦੇ ਪ੍ਰਿੰਟ ਪ੍ਰਾਪਤ ਕਰੋ",null,null,null,null,null,null,"Cooking Cost Per Student",null,6.78]
[]
["ਸਕੂਲ    :","srkwrI pRwiemrI skUl ",null,null,null,null,null,null,null,"ਮਹੀਨਾ:",null,"May",null,"Anwj dw ਮੁਢਲਾ ਬਕਾਇਆ",null,null,"ies mhIny pRwpq Anwj"]
[]
["blwk   :","KMnw-2",null,null,null,null,null,null,null,"ਸਾਲ:",null,2025,null,"kxk (ਕਿਲੋਗ੍ਰਾਮ):",null,0,"kxk (ਕਿਲੋਗ੍ਰਾਮ):",null,0]
[]
["ਜਿਲ੍ਹਾ    :","luiDAwxw",null,null,null,null,null,null,null,"ਖੀਰ ਬਣਾਉਣ ਵਾਲਾ ਦਿਨ :",null,"Mon",null,"cwvl  (ਕਿਲੋਗ੍ਰਾਮ):",null,0,"cwvl (ਕਿਲੋਗ੍ਰਾਮ):",null,0]
[null,null,null,null,null,null,null,null,null,"PrUt dyx dw idn :",null,"Wed"]
[null,null,null,"imf-fy-mIl sbMDI Anwj dw stwk Aqy Kpq rijstr ( jmwq 1vIN qo 5vIN)",null,null,null,null,null,null,null,null,null,null,null,null,"Total Working Day",null,{"$f":"COUNTIF(J15:J45,\">0\")","v":2}]
[null,null,null,{"$f":"B3&\"   \"&\" blwk \"&\"  \"&B5&\" \"&\"  ijlHw  \"& \"  \"&B7 & \" \"","v":"srkwrI pRwiemrI skUl     blwk   KMnw-2   ijlHw    luiDAwxw "},null,null,null,null,null,null,null,null,null,null,{"$f":"L3","v":"May"},{"$f":"L5","v":2025},null,null,null,null,null,"Satrt Date",{"$f":"DATEVALUE(1&L3&L5)","v":"2025-05-01"}]
[]
[null,null,null,"imqI","Bojn Kwx vwly ividAwrQI",null,null,null,null,null,"kxk","cwvl","shI"," mYbrW vlO nrIKx",null,"irmwks",null,null,null,null,null,"End Date",{"$f":"EOMONTH(W10,0)","v":"2025-05-31"}]
["mhIny dorwn AOsqn dwKl ividAwrQI \ndI igxqI:-",null,null,null,1,2,3,4,5,"ku`l","K`pq 100 gRwm pRiq ivid","K`pq 100 gRwm pRiq ivid.",null,"nW","hsqwKr"]
[null,null,null,null,"hwjr","hwjr","hwjr","hwjr","hwjr","hwjr","iklo ivc","iklo iv`c",null,null,null,null,null,null,null,null,null,null,"Jan"]
["mhIny dy surU ivc muFlw bkweiAw",null,null,{"$f":"W10","v":"2025-05-01"},null,null,null,null,null,{"$f":"SUM(E15:I15)","v":0},{"$f":"'Calculation sheet'!L7","v":0},{"$f":"'Calculation sheet'!M7","v":0},null,null,null,null,null,null,null,null,{"$f":"IF(ISBLANK((D15)),\"None\",TEXT(D15,\"DDD\"))","v":"Thu"},"Mon","Feb"]
["kxk (iklo iv`c)","cwvl (iklo iv`c)",null,{"$f":"IF(D15<$W$12,D15+1,\"\")","v":"2025-05-02"},null,null,null,null,null,{"$f":"SUM(E16:I16)","v":0},{"$f":"'Calculation sheet'!L8","v":0},{"$f":"'Calculation sheet'!M8","v":0},null,null,null,null,null,null,null,null,{"$f":"IF(ISBLANK((D16)),\"None\",TEXT(D16,\"DDD\"))","v":"Fri"},"Tue","Mar"]
[{"$f":"P5","v":0},{"$f":"P7","v":0},null,{"$f":"IF(D16<$W$12,D16+1,\"\")","v":"2025-05-03"},null,null,null,null,null,0,{"$f":"'Calculation sheet'!L9","v":0},{"$f":"'Calculation sheet'!M9","v":0},null,null,null,null,null,null,null,null,"Sat","Wed","Apr"]
[null,null,null,"2025-05-04",null,null,null,null,null,0,{"$f":"'Calculation sheet'!L10","v":0},{"$f":"'Calculation sheet'!M10","v":0},null,null,null,null,null,null,null,null,"Sun","Thu","May"]
[" pRwpq      kxk","cwvl",null,"2025-05-05",null,null,null,null,null,0,{"$f":"'Calculation sheet'!L11","v":0},{"$f":"'Calculation sheet'!M11","v":0},null,null,null,null,null,null,null,null,"Mon","Fri","Jun"]
[{"$f":"S5","v":0},{"$f":"S7","v":0},null,"2025-05-06",null,null,null,null,null,0,{"$f":"'Calculation sheet'!L12","v":0},{"$f":"'Calculation sheet'!M12","v":0},null,null,null,null,null,null,null,null,"Tue","Sat","Jul"]
[null,null,null,"2025-05-07",400,null,null,null,null,400,{"$f":"'Calculation sheet'!L13","v":40},{"$f":"'Calculation sheet'!M13","v":0},null,null,null,null,null,null,null,null,"Wed",null,"Aug"]
["joV        kxk","cwvl",null,"2025-05-08",300,null,null,null,null,300,{"$f":"'Calculation sheet'!L14","v":0},{"$f":"'Calculation sheet'!M14","v":30},null,null,null,null,null,null,null,null,"Thu",null,"Sep"]
[{"$f":"A17+A20","v":0},{"$f":"B17+B20","v":0},null,"2025-05-09",null,null,null,null,null,0,{"$f":"'Calculation sheet'!L15","v":0},{"$f":"'Calculation sheet'!M15","v":0},null,null,null,null,null,null,null,null,"Fri",null,"Oct"]
[null,null,null,"2025-05-10",null,null,null,null,null,0,{"$f":"'Calculation sheet'!L16","v":0},{"$f":"'Calculation sheet'!M16","v":0},null,null,null,null,null,null,null,null,"Sat",null,"Nov"]
["mhIny dorwn Kpq",null,null,"2025-05-11",null,null,null,null,null,0,{"$f":"'Calculation sheet'!L17","v":0},{"$f":"'Calculation sheet'!M17","v":0},null,null,null,null,null,null,null,null,"Sun",null,"Dec"]
[{"$f":"'Calculation sheet'!L38","v":40},{"$f":"'Calculation sheet'!M38","v":30},null,"2025-05-12",null,null,null,null,null,0,{"$f":"'Calculation sheet'!L18","v":0},{"$f":"'Calculation sheet'!M18","v":0},null,null,null,null,null,null,null,null,"Mon"]
[null,null,null,"2025-05-13",null,null,null,null,null,0,{"$f":"'Calculation sheet'!L19","v":0},{"$f":"'Calculation sheet'!M19","v":0},null,null,null,null,null,null,null,null,"Tue"]
[null,null,null,"2025-05-14",null,null,null,null,null,0,{"$f":"'Calculation sheet'!L20","v":0},{"$f":"'Calculation sheet'!M20","v":0},null,null,null,null,null,null,null,null,"Wed"]
["mhIny dy AMq ivc bkwieAw",null,null,"2025-05-15",null,null,null,null,null,0,{"$f":"'Calculation sheet'!L21","v":0},{"$f":"'Calculation sheet'!M21","v":0},null,null,null,null,null,null,null,null,"Thu"]
["kxk","cwvl",null,"2025-05-16",null,null,null,null,null,0,{"$f":"'Calculation sheet'!L22","v":0},{"$f":"'Calculation sheet'!M22","v":0},null,null,null,null,null,null,null,null,"Fri"]
[{"$f":"A23-A26","v":-40},{"$f":"B23-B26","v":-30},null,"2025-05-17",null,null,null,null,null,0,{"$f":"'Calculation sheet'!L23","v":0},{"$f":"'Calculation sheet'!M23","v":0},null,null,null,null,null,null,null,null,"Sat"]
["ku`l kuikg kwst",{"$f":"J46*S1","v":4746},null,"2025-05-18",null,null,null,null,null,0,{"$f":"'Calculation sheet'!L24","v":0},{"$f":"'Calculation sheet'!M24","v":0},null,null,null,null,null,null,null,null,"Sun"]
["pRwpq Awmdn PFMS  qyies mhIny",null,null,"2025-05-19",null,null,null,null,null,0,{"$f":"'Calculation sheet'!L25","v":0},{"$f":"'Calculation sheet'!M25","v":0},null,null,null,null,null,null,null,null,"Mon"]
[null,null,null,"2025-05-20",null,null,null,null,null,0,{"$f":"'Calculation sheet'!L26","v":0},{"$f":"'Calculation sheet'!M26","v":0},null,null,null,null,null,null,null,null,"Tue"]
["Krcw PFMS qy ( PPA )",null,null,"2025-05-21",null,null,null,null,null,0,{"$f":"'Calculation sheet'!L27","v":0},{"$f":"'Calculation sheet'!M27","v":0},null,null,null,null,null,null,null,null,"Wed"]
[null,null,null,"2025-05-22",null,null,null,null,null,0,{"$f":"'Calculation sheet'!L28","v":0},{"$f":"'Calculation sheet'!M28","v":0},null,null,null,null,null,null,null,null,"Thu"]
["muFlw bkwieAw kuikMg kwst",null,null,"2025-05-23",null,null,null,null,null,0,{"$f":"'Calculation sheet'!L29","v":0},{"$f":"'Calculation sheet'!M29","v":0},null,null,null,null,null,null,null,null,"Fri"]
[null,null,null,"2025-05-24",null,null,null,null,null,0,{"$f":"'Calculation sheet'!L30","v":0},{"$f":"'Calculation sheet'!M30","v":0},null,null,null,null,null,null,null,null,"Sat"]
["mhIny dy AMq ivc bkwieAw",{"$f":"B37+B33-B35","v":0},null,"2025-05-25",null,null,null,null,null,0,{"$f":"'Calculation sheet'!L31","v":0},{"$f":"'Calculation sheet'!M31","v":0},null,null,null,null,null,null,null,null,"Sun"]
[null,null,null,"2025-05-26",null,null,null,null,null,0,{"$f":"'Calculation sheet'!L32","v":0},{"$f":"'Calculation sheet'!M32","v":0},null,null,null,null,null,null,null,null,"Mon"]
[null,null,null,"2025-05-27",null,null,null,null,null,0,{"$f":"'Calculation sheet'!L33","v":0},{"$f":"'Calculation sheet'!M33","v":0},null,null,null,null,null,null,null,null,"Tue"]
[null,null,null,"2025-05-28",null,null,null,null,null,0,{"$f":"'Calculation sheet'!L34","v":0},{"$f":"'Calculation sheet'!M34","v":0},null,null,null,null,null,null,null,null,"Wed"]
[null,null,null,"2025-05-29",null,null,null,null,null,0,{"$f":"'Calculation sheet'!L35","v":0},{"$f":"'Calculation sheet'!M35","v":0},null,null,null,null,null,null,null,null,"Thu"]
[null,null,null,"2025-05-30",null,null,null,null,null,0,{"$f":"'Calculation sheet'!L36","v":0},{"$f":"'Calculation sheet'!M36","v":0},null,null,null,null,null,null,null,null,"Fri"]
[null,null,null,"2025-05-31",null,null,null,null,null,0,{"$f":"'Calculation sheet'!L37","v":0},{"$f":"'Calculation sheet'!M37","v":0},null,null,null,null,null,null,null,null,"Sat"]
[null,null,null,"ku`l",{"$f":"SUM(E15:E45)","v":700},{"$f":"SUM(F15:F45)","v":0},0,0,0,{"$f":"SUM(J15:J45)","v":700},{"$f":"SUM(K15:K45)","v":40},30]
[]
[]
[]
[]
[]
["PrUt dI igxqI ies mhIny",{"$f":"'Bill Print'!E34","v":400}]
["PrUt dy bxdy pYsy",{"$f":"'Bill Print'!H34","v":2000}]

{"sheet":"Bill Print","index":2,"n_rows":44,"n_cols":19,"rows_kept":44,"cut":false,"hidden":false,"merged":[[1,2,1,7],[19,2,19,7],[24,5,25,5],[24,6,25,6],[24,7,25,7],[11,6,14,6],[11,7,14,7],[18,3,18,5],[24,16,25,16],[24,17,25,17],[30,2,30,7],[2,2,2,5],[3,2,3,7],[26,2,26,7],[24,18,25,18],[26,13,26,18],[30,13,30,18],[35,12,35,19],[0,1,0,8],[1,1,34,1],[1,8,34,8],[35,1,35,8],[0,12,0,19],[1,12,34,12],[1,13,1,18],[1,19,34,19],[2,13,2,16],[3,13,3,18],[18,14,18,16],[19,13,19,18]]}
[]
[null,null,"Monthly Bill Item Wise Auto",null,null,null,null,null,null,null,null,null,null,"Monthly Bill Custom Rate Wise"]
[null,null,"For the Month of: ",null,null,null,null,{"$f":"'Entry Sheet'!L3&\"_\"&'Entry Sheet'!L5","v":"May_2025"},null,null,null,null,null,"For the Month of: ",null,null,null,{"$f":"H3","v":"May_2025"},{"$f":"#REF!&+\"_\"&#REF!","v":{"$error":"#REF!"}}]
[null,null,"kirAwnw ib`l",null,null,null,null,null,null,null,null,null,null,"kirAwnw ib`l"]
[null,null,"Sr. no.","Item","Quantity","Rate","Total","Total Amount",null,null,null,null,null,"Sr. no.","Item","Quantity","Rate","Total","Total Amount"]
[null,null,1,"dwl (cnw Aqy muMgI)",{"$f":"'Calculation sheet'!$Z$38","v":0},110,{"$f":"E6*F6","v":0},{"$f":"G6","v":0},null,null,null,null,null,1,"dwl (cnw Aqy muMgI)",{"$f":"'Calculation sheet'!$Z$38","v":0},100,{"$f":"P6*Q6","v":0},{"$f":"R6","v":0}]
[null,null,2,"kwly Coly",{"$f":"'Calculation sheet'!$AA$38","v":10},90,{"$f":"E7*F7","v":900},{"$f":"G7","v":900},null,null,null,null,null,2,"kwly Coly",{"$f":"'Calculation sheet'!$AA$38","v":10},90,{"$f":"P7*Q7","v":900},{"$f":"R7","v":900}]
[null,null,3,"bysx",{"$f":"'Calculation sheet'!$AD$38","v":6},105,630,630,null,null,null,null,null,3,"bysx",{"$f":"'Calculation sheet'!$AD$38","v":6},105,630,630]
[null,null,4,"irPwief qyl",{"$f":"'Calculation sheet'!$AG$38","v":5.7},130,741,741,null,null,null,null,null,4,"irPwief qyl",{"$f":"'Calculation sheet'!$AG$38","v":5.7},130,741,741]
[null,null,5,"cInI",{"$f":"'Calculation sheet'!$AH$38","v":0},40,0,0,null,null,null,null,null,5,"cInI",{"$f":"'Calculation sheet'!$AH$38","v":0},40,0,0]
[null,null,6,"rwjmwh",{"$f":"'Calculation sheet'!$AK$38","v":0},95,0,0,null,null,null,null,null,6,"rwjmwh",{"$f":"'Calculation sheet'!$AK$38","v":0},95,0,0]
[null,null,7,"nmk",null,null,{"$f":"ROUND(SUM(G6:G11)/8,0)","v":284},{"$f":"G12","v":284},null,null,null,null,null,7,"nmk",null,50,{"$f":"Q12","v":50},{"$f":"R12","v":50}]
[null,null,8,"hldI",null,null,null,null,null,null,null,null,null,8,"hldI",null,50,{"$f":"Q13","v":50},{"$f":"R13","v":50}]
[null,null,9,"imrc",null,null,null,null,null,null,null,null,null,9,"imrc",null,10,10,10]
[null,null,10,"mswlw",null,null,null,null,null,null,null,null,null,10,"mswlw",null,50,50,{"$f":"R15","v":50}]
[null,null,11,"dwKW",{"$f":"IF(H29<1,0,IF(H29<700,1,IF(H29<1000,2,IF(H29<1600,3,IF(H29<2500,4,IF(H29>3000,5,0))))))","v":0},50,0,{"$f":"G16","v":0},null,null,null,null,null,11,"dwKW",null,null,{"$f":"Q16","v":0},{"$f":"R16","v":0}]
[null,null,12,"Kopw",{"$f":"IF(H29<1,0,IF(H29<700,1,IF(H29<1000,2,IF(H29<1600,3,IF(H29<2500,4,IF(H29>3000,5,0))))))","v":0},20,0,{"$f":"G17","v":0},null,null,null,null,null,12,"Kopw",null,null,{"$f":"Q17","v":0},{"$f":"R17","v":0}]
[null,null,13,"jIrw (grwmW iv`c)",{"$f":"IF(F44<4000,100,IF(F44<10000,200,IF(F44<15000,300,IF(F44<20000,350,IF(F44>20000,400,0)))))","v":200},490,{"$f":"(E18*F18)/1000","v":98},{"$f":"G18+G44","v":98},null,null,null,null,null,13,"jIrw (grwmW iv`c)",null,null,0,{"$f":"R18+R44","v":0}]
[null,null,null,"Total",null,null,{"$f":"SUM(G6:G18)","v":2653},{"$f":"SUM(H6:H18)","v":2653},null,null,null,null,null,null,"Total",null,null,{"$f":"SUM(R6:R18)","v":2431},{"$f":"SUM(S6:S18)","v":2431}]
[null,null,"sbjI mMfI ib`l",null,null,null,null,null,null,null,null,null,null,"sbjI mMfI ib`l"]
[null,null,"Sr. no.","Item","Quantity","Rate","Total","Amount",null,null,null,null,null,"Sr. no.","Item","Quantity","Rate","Total","Amount"]
[null,null,1,"ipAwj",{"$f":"'Calculation sheet'!$AB$38","v":9},20,{"$f":"E22*F22","v":180},{"$f":"G22","v":180},null,null,null,null,null,1,"ipAwj",{"$f":"E22","v":9},20,{"$f":"P22*Q22","v":180},{"$f":"R22","v":180}]
[null,null,2,"AwlU",{"$f":"'Calculation sheet'!$AJ$38","v":9},15,{"$f":"E23*F23","v":135},{"$f":"G23","v":135},null,null,null,null,null,2,"AwlU",{"$f":"E23","v":9},20,{"$f":"P23*Q23","v":180},{"$f":"R23","v":180}]
[null,null,3,"Adrk,tmwtr,hrI imrc",null,null,{"$f":"ROUND(G22/5,-1)","v":40},40,null,null,null,null,null,3,"Adrk,tmwtr,hrI imrc",null,50,{"$f":"Q24","v":50},50]
[null,null,4,"sbjI",{"$f":"'Calculation sheet'!$AE$38","v":0},25,{"$f":"ROUND((E25+E26)*F25,0)","v":0},{"$f":"ROUND(G25,0)","v":0},null,null,null,null,null,4,"sbjI",0,30,{"$f":"(P25+P26)*Q25","v":0},{"$f":"R25","v":0}]
[null,null,5,"sbjI dwl leI",{"$f":"'Calculation sheet'!$AF$38","v":0},null,null,null,null,null,null,null,null,5,"sbjI dwl leI",0]
[null,null,"fyArI ib`l",null,null,null,null,null,null,null,null,null,null,"fyArI ib`l"]
[null,null,"Sr. no.","Item","Quantity","Rate","Total","Amount",null,null,null,null,null,"Sr. no.","Item","Quantity","Rate","Total","Amount"]
[null,null,1,"du`D",{"$f":"'Calculation sheet'!$AI$38","v":0},65,{"$f":"E29*F29","v":0},{"$f":"G29","v":0},null,null,null,null,null,1,"du`D",{"$f":"E29","v":0},65,{"$f":"P29*Q29","v":0},{"$f":"R29","v":0}]
[null,null,2,"dhIN",{"$f":"'Calculation sheet'!$AC$38","v":6},80,480,{"$f":"G30","v":480},null,null,null,null,null,2,"dhIN",{"$f":"E30","v":6},80,480,{"$f":"R30","v":480}]
[null,null," ib`l bwkI Aietm",null,null,null,null,null,null,null,null,null,null," ib`l bwkI Aietm"]
[null,null,1,"Awtw ipsweI",{"$f":"'Calculation sheet'!$L$38","v":40},3,120,{"$f":"G32","v":120},null,null,null,null,null,1,"Awtw ipsweI",{"$f":"E32","v":40},3,{"$f":"P32*Q32","v":120},{"$f":"R32","v":120}]
[null,null,2,"bwlx",null,null,{"$f":"ROUND(F44-SUM(G19:G32),0)","v":1138},{"$f":"ROUND(G33,1)","v":1138},null,null,null,null,null,2,"bwlx",null,200,{"$f":"Q33","v":200},{"$f":"ROUND(R33,1)","v":200}]
[null,null,3,"kyly (pIsW iv`c)",{"$f":"'Calculation sheet'!AL38","v":400},5,null,{"$f":"E34*F34","v":2000},null,null,null,null,null,3,"kyly (pIsW iv`c)",{"$f":"'Calculation sheet'!AL38","v":400},5,{"$f":"P34*Q34","v":2000},{"$f":"P34*Q34","v":2000}]
[null,null,null,"ku`l PrUt smyq",{"$f":"H35+H34","v":6746},"ibnw PrUt",{"$f":"SUM(G19:G34)","v":4746},{"$f":"SUM(H19:H33)","v":4746},null,null,null,null,null,null,"ku`l PrUt smyq",{"$f":"R35+R34","v":5641},"ibnw PrUt",{"$f":"SUM(R19:R33)","v":3641},{"$f":"SUM(S19:S33)","v":3641}]
[]
[]
[]
[]
[null,null,null,null,null,{"$f":"IF(H35=F44,\"Matched\",\"error\")","v":"Matched"},null,null,null,null,null,null,null,null,"Required","Diff"]
[null,null,null,null,null,null,null,null,null,null,null,null,null,null,{"$f":"'Calculation sheet'!$R$38","v":4746},{"$f":"O41-R35","v":1105}]
[]
[null,null,null,null,null,"Required","Diff"]
[null,null,null,null,null,{"$f":"'Calculation sheet'!$R$38","v":4746},{"$f":"F44-G35","v":0}]

{"sheet":"Calculation sheet","index":3,"n_rows":40,"n_cols":41,"rows_kept":40,"cut":false,"hidden":false,"merged":[[2,25,2,36],[38,7,38,10],[4,38,4,40],[5,0,5,1],[2,15,3,16],[2,17,4,17],[2,18,4,18],[3,5,3,6],[3,7,3,8],[2,11,3,12],[2,13,3,14],[1,0,1,19],[2,0,4,0],[2,1,4,1],[2,2,4,2],[2,3,4,3],[2,4,4,4],[2,5,2,8],[2,9,3,10],[2,19,4,19]]}
[]
[{"$f":"\"rojwnw Anwj dI Kpq Aqy pkwaux dy Krcy dI irport\"&\n\"   skUl dw nwm: = \"&'Entry Sheet'!D10","v":"rojwnw Anwj dI Kpq Aqy pkwaux dy Krcy dI irport   skUl dw nwm: = srkwrI pRwiemrI skUl     blwk   KMnw-2   ijlHw    luiDAwxw "}]
["lVI nM","imqI","dwKl hoey ividAwrQIAw dI igxqI","hwjLr ividAwrQIAw dI igxqI","Bojn krn vwly ividAwrQIAw dI igxqI","skUl ivwc Anwj dw BMzwr",null,null,null,"ku`l BMfwr",null,"A`j dy idn dI Anwj dI vrqoN",null,"ies mhIny dI Anwj dI vrqoN pROgRYisv",null,"Anwj dw bkwieAw BMzwr",null,"A`j dy idn dw Bojn bxwaux dw Krcw","ies mhIny dw pOgRYisv Bojn pkwaux dw Krcw","Bojn dI iksm",null,null,null,null,null,"Bojn bnwaux leI dUsrI smgrI (iklo iv`c)"]
[null,null,null,null,null,"muuFlw bkwieAw",null,"A`j dy idn dI pRwpqI"]
[null,null,null,null,null,"kxk \niklo ivwc","cwvl iklo iv`c","kxk \nik`lo iv`c","cwvl iklo iv`c","kxk \nik`lo iv`c","cwvl iklo iv`c","kxk \nik`lo iv`c","cwvl iklo iv`c","kxk \nik`lo ivwc","cwvl iklo iv`c","kxk \nik`lo ivwc","cwvl iklo iv`c",null,null,null,null,{"$f":"'Entry Sheet'!L7","v":"Mon"},null,null,null,"Dal","Black Channa","Onion ","Curd","Besan","Vegetables","Vegitable for Dal","Oil & Fat","Sugar","Milk","Pattato","Rajmah","Fruits","pRqI b`cw rwSn dI imkdwr"]
["Previous\n",null,null,null,0,{"$f":"'Entry Sheet'!P5","v":0},{"$f":"'Entry Sheet'!P7","v":0},{"$f":"'Entry Sheet'!S5","v":0},{"$f":"'Entry Sheet'!S7","v":0},null,null,null,null,null,null,null,null,null,null,null,null,null,null,null,null,"In KG","In KG","In KG","In KG","In KG","In KG","In KG","In KG","In KG","In Litt","In KG","In kg","pcs","Item","Quantity /Std in gm","In KG"]
[1,{"$f":"'Entry Sheet'!D15","v":"2025-05-01"},null,{"$f":"'Entry Sheet'!J15","v":0},{"$f":"D7","v":0},{"$f":"F6","v":0},{"$f":"G6","v":0},0,0,{"$f":"F7+H6","v":0},{"$f":"G7+I6","v":0},{"$f":"IF(OR(X7=\"MonOK\",X7=\"WedOK\",X7=\"FriOK\"),E7*0.1,IF(OR(X7=\"MonOK Aqy Kir\",X7=\"WedOK Aqy Kir\",X7=\"FriOK Aqy Kir\"),E7*0.09,0))","v":0},{"$f":"IF(OR(X7=\"TueOK\",X7=\"ThuOK\",X7=\"SatOK\"),E7*0.1,IF(OR(X7=\"MonOK Aqy Kir\",X7=\"WedOK Aqy Kir\",X7=\"FriOK Aqy Kir\"),E7*0.01,IF(OR(X7=\"TueOK Aqy Kir\",X7=\"ThuOK Aqy Kir\",X7=\"SatOK Aqy Kir\"),E7*0.1,0)))","v":0},{"$f":"N6+L7","v":0},0,{"$f":"J7-L7","v":0},{"$f":"K7-M7","v":0},{"$f":"E7*'Entry Sheet'!$S$1","v":0},{"$f":"S6+R7","v":0},{"$f":"CHOOSE(Y7,\"dwl (mOsmI sbjI imlw ky) Aqy rotI\",\"rwjmwh Aqy  cwvl\",\"kwly Colyy(AwlU imlw ky)Aqy rotI \",\"kVI (pkOoiVAW smyq) Aqy cwvl\",\"moOsmI sbjI Aqy rotI\",\"dwl (mOsmI sbjI imlw ky) Aqy cwvl \",\"dwl (mOsmI sbjI imlw ky) Aqy rotI Aqy KIr\",\"rwjmwh Aqy  cwvl Aqy KIr\",\"kwly Colyy(AwlU imlw ky)Aqy rotI Aqy KIr\",\"kVI (pkOoiVAW smyq) Aqy cwvl Aqy KIr\",\"moOsmI sbjI Aqy rotI Aqy KIr\",\"dwl (mOsmI sbjI imlw ky) Aqy cwvl Aqy KIr\",\"Cu`tI\",\"Cu`tI\")","v":"Cu`tI"},{"$f":"IF(AND(W7=\"Wed\",E7>0),\"kwly Colyy(AwlU imlw ky)Aqy rotI \",IF(AND(W7=\"Thu\",E7>0),\"kVI (pkOoiVAW smyq) Aqy cwvl\",IF(AND(W7=\"Mon\",E7>0),\"dwl (mOsmI sbjI imlw ky) Aqy rotI\",IF(AND(W7=\"Tue\",E7>0),\"rwjmwh Aqy  cwvl\",IF(AND(W7=\"Fri\",E7>0),\"moOsmI sbjI Aqy rotI\",IF(AND(W7=\"Sat\",E7>0),\"dwl (mOsmI sbjI imlw ky) Aqy cwvl \",\"Cu`tI\"))))))","v":"Cu`tI"},{"$f":"IF(AND(E7>0,$V$5=W7),\" Aqy KIr\",\"\")","v":""},{"$f":"'Entry Sheet'!U15","v":"Thu"},{"$f":"IF(E7>0,W7&\"OK\"&V7,\"\")","v":""},{"$f":"IF(X7=\"MonOk\",1,IF(X7=\"TueOk\",2,IF(X7=\"WedOk\",3,IF(X7=\"ThuOk\",4,IF(X7=\"FriOk\",5,IF(X7=\"SatOk\",6,IF(X7=\"MonOk Aqy KIr\",7,IF(X7=\"TueOk Aqy KIr\",8,IF(X7=\"WedOk Aqy KIr\",9,IF(X7=\"ThuOk Aqy KIr\",10,IF(X7=\"FriOk Aqy KIr\",11,IF(X7=\"SatOk Aqy KIr\",12,IF(W7=\"Sun\",13,14)))))))))))))","v":14},{"$f":"IF(OR(Y7=1,Y7=6,Y7=7,Y7=12),E7*$AO$7,0)","v":0},{"$f":"IF(OR(Y7=3,Y7=9),E7*$AO$8,0)","v":0},{"$f":"IF(OR(Y7=1,Y7=6,Y7=7,Y7=12,Y7=2,Y7=8),E7*$AO$21,IF(OR(Y7=3,Y7=9),E7*$AO$22,IF(OR(Y7=4,Y7=10),E7*$AO$23,IF(OR(Y7=5,Y7=11),E7*$AO$24,0))))","v":0},{"$f":"IF(OR(Y7=4,Y7=10),E7*$AO$19,0)","v":0},{"$f":"IF(OR(Y7=4,Y7=10),E7*$AO$10,0)","v":0},{"$f":"IF(OR(Y7=5,Y7=11),E7*$AO$28,0)","v":0},{"$f":"IF(OR(Y7=1,Y7=6,Y7=7,Y7=12),E7*$AO$27,0)","v":0},{"$f":"IF(OR(Y7=1,Y7=6,Y7=7,Y7=12,Y7=2,Y7=8),E7*$AO$11,IF(OR(Y7=3,Y7=9),E7*$AO$12,IF(OR(Y7=4,Y7=10),E7*$AO$13,IF(OR(Y7=5,Y7=11),E7*$AO$14,0))))","v":0},{"$f":"IF(OR(Y7=7,Y7=8,Y7=9,Y7=10,Y7=11,Y7=12),E7*$AO$18,0)","v":0},{"$f":"IF(OR(Y7=7,Y7=8,Y7=9,Y7=10,Y7=11,Y7=12),E7*$AO$20,0)","v":0},{"$f":"IF(OR(Y7=4,Y7=10),E7*$AO$25,IF(OR(Y7=3,Y7=9),E7*$AO$26,0))","v":0},{"$f":"IF(OR(Y7=2,Y7=8),E7*$AO$9,0)","v":0},{"$f":"IF('Entry Sheet'!$L$8='Calculation sheet'!W7,E7,0)","v":0},"dwl",20,{"$f":"AN7/1000","v":0.02}]
[2,{"$f":"'Entry Sheet'!D16","v":"2025-05-02"},null,{"$f":"'Entry Sheet'!J16","v":0},{"$f":"D8","v":0},{"$f":"P7","v":0},{"$f":"Q7","v":0},0,0,{"$f":"F8+H8","v":0},{"$f":"G8+I8","v":0},{"$f":"IF(OR(X8=\"MonOK\",X8=\"WedOK\",X8=\"FriOK\"),E8*0.1,IF(OR(X8=\"MonOK Aqy Kir\",X8=\"WedOK Aqy Kir\",X8=\"FriOK Aqy Kir\"),E8*0.09,0))","v":0},{"$f":"IF(OR(X8=\"TueOK\",X8=\"ThuOK\",X8=\"SatOK\"),E8*0.1,IF(OR(X8=\"MonOK Aqy Kir\",X8=\"WedOK Aqy Kir\",X8=\"FriOK Aqy Kir\"),E8*0.01,IF(OR(X8=\"TueOK Aqy Kir\",X8=\"ThuOK Aqy Kir\",X8=\"SatOK Aqy Kir\"),E8*0.1,0)))","v":0},0,0,{"$f":"J8-L8","v":0},{"$f":"K8-M8","v":0},{"$f":"E8*'Entry Sheet'!$S$1","v":0},{"$f":"S7+R8","v":0},{"$f":"CHOOSE(Y8,\"dwl (mOsmI sbjI imlw ky) Aqy rotI\",\"rwjmwh Aqy  cwvl\",\"kwly Colyy(AwlU imlw ky)Aqy rotI \",\"kVI (pkOoiVAW smyq) Aqy cwvl\",\"moOsmI sbjI Aqy rotI\",\"dwl (mOsmI sbjI imlw ky) Aqy cwvl \",\"dwl (mOsmI sbjI imlw ky) Aqy rotI Aqy KIr\",\"rwjmwh Aqy  cwvl Aqy KIr\",\"kwly Colyy(AwlU imlw ky)Aqy rotI Aqy KIr\",\"kVI (pkOoiVAW smyq) Aqy cwvl Aqy KIr\",\"moOsmI sbjI Aqy rotI Aqy KIr\",\"dwl (mOsmI sbjI imlw ky) Aqy cwvl Aqy KIr\",\"Cu`tI\",\"Cu`tI\")","v":"Cu`tI"},{"$f":"IF(AND(W8=\"Wed\",E8>0),\"kwly Colyy(AwlU imlw ky)Aqy rotI \",IF(AND(W8=\"Thu\",E8>0),\"kVI (pkOoiVAW smyq) Aqy cwvl\",IF(AND(W8=\"Mon\",E8>0),\"dwl (mOsmI sbjI imlw ky) Aqy rotI\",IF(AND(W8=\"Tue\",E8>0),\"rwjmwh Aqy  cwvl\",IF(AND(W8=\"Fri\",E8>0),\"moOsmI sbjI Aqy rotI\",IF(AND(W8=\"Sat\",E8>0),\"dwl (mOsmI sbjI imlw ky) Aqy cwvl \",\"Cu`tI\"))))))","v":"Cu`tI"},{"$f":"IF(AND(E8>0,$V$5=W8),\" Aqy KIr\",\"\")","v":""},{"$f":"'Entry Sheet'!U16","v":"Fri"},{"$f":"IF(E8>0,W8&\"OK\"&V8,\"\")","v":""},{"$f":"IF(X8=\"MonOk\",1,IF(X8=\"TueOk\",2,IF(X8=\"WedOk\",3,IF(X8=\"ThuOk\",4,IF(X8=\"FriOk\",5,IF(X8=\"SatOk\",6,IF(X8=\"MonOk Aqy KIr\",7,IF(X8=\"TueOk Aqy KIr\",8,IF(X8=\"WedOk Aqy KIr\",9,IF(X8=\"ThuOk Aqy KIr\",10,IF(X8=\"FriOk Aqy KIr\",11,IF(X8=\"SatOk Aqy KIr\",12,IF(W8=\"Sun\",13,14)))))))))))))","v":14},0,0,0,0,0,0,0,0,0,0,0,0,{"$f":"IF('Entry Sheet'!$L$8='Calculation sheet'!W8,E8,0)","v":0},"Coly",25,{"$f":"AN8/1000","v":2.5000000000000001E-2}]
[3,{"$f":"'Entry Sheet'!D17","v":"2025-05-03"},null,{"$f":"'Entry Sheet'!J17","v":0},0,{"$f":"P8","v":0},{"$f":"Q8","v":0},0,0,{"$f":"F9+H9","v":0},{"$f":"G9+I9","v":0},0,0,0,0,{"$f":"J9-L9","v":0},{"$f":"K9-M9","v":0},{"$f":"E9*'Entry Sheet'!$S$1","v":0},{"$f":"S8+R9","v":0},"Cu`tI","Cu`tI","",{"$f":"'Entry Sheet'!U17","v":"Sat"},"",14,0,0,0,0,0,0,0,0,0,0,0,0,{"$f":"IF('Entry Sheet'!$L$8='Calculation sheet'!W9,E9,0)","v":0},"rwj mwh",20,0.02]
[4,{"$f":"'Entry Sheet'!D18","v":"2025-05-04"},null,{"$f":"'Entry Sheet'!J18","v":0},0,0,0,0,0,0,0,0,0,{"$f":"N9+L10","v":0},{"$f":"O9+M10","v":0},0,0,{"$f":"E10*'Entry Sheet'!$S$1","v":0},0,"Cu`tI","Cu`tI","",{"$f":"'Entry Sheet'!U18","v":"Sun"},"",13,0,0,0,0,0,0,0,0,0,0,0,0,{"$f":"IF('Entry Sheet'!$L$8='Calculation sheet'!W10,E10,0)","v":0},"bysx",20,0.02]
[5,{"$f":"'Entry Sheet'!D19","v":"2025-05-05"},null,{"$f":"'Entry Sheet'!J19","v":0},0,0,0,0,0,0,0,0,0,{"$f":"N10+L11","v":0},0,{"$f":"J11-L11","v":0},0,{"$f":"E11*'Entry Sheet'!$S$1","v":0},0,"Cu`tI","Cu`tI",{"$f":"IF(AND(E11>0,$V$5=W11),\" Aqy KIr\",\"\")","v":""},{"$f":"'Entry Sheet'!U19","v":"Mon"},"",14,0,0,0,0,0,0,0,0,0,0,0,0,{"$f":"IF('Entry Sheet'!$L$8='Calculation sheet'!W11,E11,0)","v":0},"irPwief dwl/rwjmwh",5,5.0000000000000001E-3]
[6,{"$f":"'Entry Sheet'!D20","v":"2025-05-06"},null,{"$f":"'Entry Sheet'!J20","v":0},0,0,0,0,0,0,0,0,0,0,0,0,0,{"$f":"E12*'Entry Sheet'!$S$1","v":0},0,"Cu`tI","Cu`tI","",{"$f":"'Entry Sheet'!U20","v":"Tue"},"",14,0,0,0,0,0,0,0,0,0,0,0,0,{"$f":"IF('Entry Sheet'!$L$8='Calculation sheet'!W12,E12,0)","v":0},"irPwief CoilAw nwl",10.5,1.0500000000000001E-2]
[7,{"$f":"'Entry Sheet'!D21","v":"2025-05-07"},null,{"$f":"'Entry Sheet'!J21","v":400},400,0,0,0,0,0,0,40,0,40,0,-40,0,{"$f":"E13*'Entry Sheet'!$S$1","v":2712},2712,"kwly Colyy(AwlU imlw ky)Aqy rotI ","kwly Colyy(AwlU imlw ky)Aqy rotI ","",{"$f":"'Entry Sheet'!U21","v":"Wed"},"WedOK",3,0,10,6,0,0,0,0,4.2,0,0,6,0,{"$f":"IF('Entry Sheet'!$L$8='Calculation sheet'!W13,E13,0)","v":400},"irPwief kVI nwl",5,5.0000000000000001E-3]
[8,{"$f":"'Entry Sheet'!D22","v":"2025-05-08"},null,{"$f":"'Entry Sheet'!J22","v":300},300,-40,0,0,0,-40,0,0,30,40,30,-40,-30,{"$f":"E14*'Entry Sheet'!$S$1","v":2034},4746,"kVI (pkOoiVAW smyq) Aqy cwvl","kVI (pkOoiVAW smyq) Aqy cwvl","",{"$f":"'Entry Sheet'!U22","v":"Thu"},"ThuOK",4,0,0,3,6,6,0,0,1.5,0,0,3,0,{"$f":"IF('Entry Sheet'!$L$8='Calculation sheet'!W14,E14,0)","v":0},"irPwief mosmI sbjI",5,5.0000000000000001E-3]
[9,{"$f":"'Entry Sheet'!D23","v":"2025-05-09"},null,{"$f":"'Entry Sheet'!J23","v":0},0,-40,-30,0,0,-40,-30,0,0,40,30,-40,-30,{"$f":"E15*'Entry Sheet'!$S$1","v":0},4746,"Cu`tI","Cu`tI","",{"$f":"'Entry Sheet'!U23","v":"Fri"},"",14,0,0,0,0,0,0,0,0,0,0,0,0,{"$f":"IF('Entry Sheet'!$L$8='Calculation sheet'!W15,E15,0)","v":0},"nmk",null,0]
[10,{"$f":"'Entry Sheet'!D24","v":"2025-05-10"},null,{"$f":"'Entry Sheet'!J24","v":0},0,-40,-30,0,0,-40,-30,0,0,40,30,-40,-30,{"$f":"E16*'Entry Sheet'!$S$1","v":0},4746,"Cu`tI","Cu`tI","",{"$f":"'Entry Sheet'!U24","v":"Sat"},"",14,0,0,0,0,0,0,0,0,0,0,0,0,{"$f":"IF('Entry Sheet'!$L$8='Calculation sheet'!W16,E16,0)","v":0},"imrc/mswlw",null,0]
[11,{"$f":"'Entry Sheet'!D25","v":"2025-05-11"},null,{"$f":"'Entry Sheet'!J25","v":0},0,-40,-30,0,0,-40,-30,0,0,40,30,-40,-30,{"$f":"E17*'Entry Sheet'!$S$1","v":0},4746,"Cu`tI","Cu`tI","",{"$f":"'Entry Sheet'!U25","v":"Sun"},"",13,0,0,0,0,0,0,0,0,0,0,0,0,{"$f":"IF('Entry Sheet'!$L$8='Calculation sheet'!W17,E17,0)","v":0},"hldI",null,0]
[12,{"$f":"'Entry Sheet'!D26","v":"2025-05-12"},null,{"$f":"'Entry Sheet'!J26","v":0},0,-40,-30,0,0,-40,-30,0,0,40,30,-40,-30,{"$f":"E18*'Entry Sheet'!$S$1","v":0},4746,"Cu`tI","Cu`tI","",{"$f":"'Entry Sheet'!U26","v":"Mon"},"",14,0,0,0,0,0,0,0,0,0,0,0,0,{"$f":"IF('Entry Sheet'!$L$8='Calculation sheet'!W18,E18,0)","v":0},"cInI",10,0.01]
[13,{"$f":"'Entry Sheet'!D27","v":"2025-05-13"},null,{"$f":"'Entry Sheet'!J27","v":0},0,-40,-30,0,0,-40,-30,0,0,40,30,-40,-30,{"$f":"E19*'Entry Sheet'!$S$1","v":0},4746,"Cu`tI","Cu`tI","",{"$f":"'Entry Sheet'!U27","v":"Tue"},"",14,0,0,0,0,0,0,0,0,0,0,0,0,{"$f":"IF('Entry Sheet'!$L$8='Calculation sheet'!W19,E19,0)","v":0},"dhI",20,0.02]
[14,{"$f":"'Entry Sheet'!D28","v":"2025-05-14"},null,{"$f":"'Entry Sheet'!J28","v":0},0,-40,-30,0,0,-40,-30,0,0,40,30,-40,-30,{"$f":"E20*'Entry Sheet'!$S$1","v":0},4746,"Cu`tI","Cu`tI","",{"$f":"'Entry Sheet'!U28","v":"Wed"},"",14,0,0,0,0,0,0,0,0,0,0,0,0,{"$f":"IF('Entry Sheet'!$L$8='Calculation sheet'!W20,E20,0)","v":0},"du`D",30,0.03]
[15,{"$f":"'Entry Sheet'!D29","v":"2025-05-15"},null,{"$f":"'Entry Sheet'!J29","v":0},0,-40,-30,0,0,-40,-30,0,0,40,30,-40,-30,{"$f":"E21*'Entry Sheet'!$S$1","v":0},4746,"Cu`tI","Cu`tI","",{"$f":"'Entry Sheet'!U29","v":"Thu"},"",14,0,0,0,0,0,0,0,0,0,0,0,0,{"$f":"IF('Entry Sheet'!$L$8='Calculation sheet'!W21,E21,0)","v":0},"ipAwj dwl/rwjmwh",10,0.01]
[16,{"$f":"'Entry Sheet'!D30","v":"2025-05-16"},null,{"$f":"'Entry Sheet'!J30","v":0},0,-40,-30,0,0,-40,-30,0,0,40,30,-40,-30,{"$f":"E22*'Entry Sheet'!$S$1","v":0},4746,"Cu`tI","Cu`tI","",{"$f":"'Entry Sheet'!U30","v":"Fri"},"",14,0,0,0,0,0,0,0,0,0,0,0,0,{"$f":"IF('Entry Sheet'!$L$8='Calculation sheet'!W22,E22,0)","v":0},"ipAwj Coly nwl",15,1.4999999999999999E-2]
[17,{"$f":"'Entry Sheet'!D31","v":"2025-05-17"},null,{"$f":"'Entry Sheet'!J31","v":0},0,-40,-30,0,0,-40,-30,0,0,40,30,-40,-30,{"$f":"E23*'Entry Sheet'!$S$1","v":0},4746,"Cu`tI","Cu`tI","",{"$f":"'Entry Sheet'!U31","v":"Sat"},"",14,0,0,0,0,0,0,0,0,0,0,0,0,{"$f":"IF('Entry Sheet'!$L$8='Calculation sheet'!W23,E23,0)","v":0},"ipAwj kVI nwl",10,0.01]
[18,{"$f":"'Entry Sheet'!D32","v":"2025-05-18"},null,{"$f":"'Entry Sheet'!J32","v":0},0,-40,-30,0,0,-40,-30,0,0,40,30,-40,-30,{"$f":"E24*'Entry Sheet'!$S$1","v":0},4746,"Cu`tI","Cu`tI","",{"$f":"'Entry Sheet'!U32","v":"Sun"},"",13,0,0,0,0,0,0,0,0,0,0,0,0,{"$f":"IF('Entry Sheet'!$L$8='Calculation sheet'!W24,E24,0)","v":0},"ipAwj mosmI sbjI nwl",25,2.5000000000000001E-2]
[19,{"$f":"'Entry Sheet'!D33","v":"2025-05-19"},null,{"$f":"'Entry Sheet'!J33","v":0},0,-40,-30,0,0,-40,-30,0,0,40,30,-40,-30,{"$f":"E25*'Entry Sheet'!$S$1","v":0},4746,"Cu`tI","Cu`tI","",{"$f":"'Entry Sheet'!U33","v":"Mon"},"",14,0,0,0,0,0,0,0,0,0,0,0,0,{"$f":"IF('Entry Sheet'!$L$8='Calculation sheet'!W25,E25,0)","v":0},"AwlU kVI nwl",10,0.01]
[20,{"$f":"'Entry Sheet'!D34","v":"2025-05-20"},null,{"$f":"'Entry Sheet'!J34","v":0},0,-40,-30,0,0,-40,-30,0,0,40,30,-40,-30,{"$f":"E26*'Entry Sheet'!$S$1","v":0},4746,"Cu`tI","Cu`tI","",{"$f":"'Entry Sheet'!U34","v":"Tue"},"",14,0,0,0,0,0,0,0,0,0,0,0,0,{"$f":"IF('Entry Sheet'!$L$8='Calculation sheet'!W26,E26,0)","v":0},"AwlU Coly nwl",15,1.4999999999999999E-2]
[21,{"$f":"'Entry Sheet'!D35","v":"2025-05-21"},null,{"$f":"'Entry Sheet'!J35","v":0},0,-40,-30,0,0,-40,-30,0,0,40,30,-40,-30,{"$f":"E27*'Entry Sheet'!$S$1","v":0},4746,"Cu`tI","Cu`tI","",{"$f":"'Entry Sheet'!U35","v":"Wed"},"",14,0,0,0,0,0,0,0,0,0,0,0,0,{"$f":"IF('Entry Sheet'!$L$8='Calculation sheet'!W27,E27,0)","v":0},"moSmI sbjI dwl nwl",6,6.0000000000000001E-3]
[22,{"$f":"'Entry Sheet'!D36","v":"2025-05-22"},null,{"$f":"'Entry Sheet'!J36","v":0},0,-40,-30,0,0,-40,-30,0,0,40,30,-40,-30,{"$f":"E28*'Entry Sheet'!$S$1","v":0},4746,"Cu`tI","Cu`tI","",{"$f":"'Entry Sheet'!U36","v":"Thu"},"",14,0,0,0,0,0,0,0,0,0,0,0,0,{"$f":"IF('Entry Sheet'!$L$8='Calculation sheet'!W28,E28,0)","v":0},"moSmI sbjI ",50,0.05]
[23,{"$f":"'Entry Sheet'!D37","v":"2025-05-23"},null,{"$f":"'Entry Sheet'!J37","v":0},0,-40,-30,0,0,-40,-30,0,0,40,30,-40,-30,{"$f":"E29*'Entry Sheet'!$S$1","v":0},4746,"Cu`tI","Cu`tI","",{"$f":"'Entry Sheet'!U37","v":"Fri"},"",14,0,0,0,0,0,0,0,0,0,0,0,0,{"$f":"IF('Entry Sheet'!$L$8='Calculation sheet'!W29,E29,0)","v":0},"Awtw ipsweI",null,0]
[24,{"$f":"'Entry Sheet'!D38","v":"2025-05-24"},null,{"$f":"'Entry Sheet'!J38","v":0},0,-40,-30,0,0,-40,-30,0,0,40,30,-40,-30,{"$f":"E30*'Entry Sheet'!$S$1","v":0},4746,"Cu`tI","Cu`tI","",{"$f":"'Entry Sheet'!U38","v":"Sat"},"",14,0,0,0,0,0,0,0,0,0,0,0,0,{"$f":"IF('Entry Sheet'!$L$8='Calculation sheet'!W30,E30,0)","v":0},"bwlx",null,0]
[25,{"$f":"'Entry Sheet'!D39","v":"2025-05-25"},null,{"$f":"'Entry Sheet'!J39","v":0},0,-40,-30,0,0,-40,-30,0,0,40,30,-40,-30,{"$f":"E31*'Entry Sheet'!$S$1","v":0},4746,"Cu`tI","Cu`tI","",{"$f":"'Entry Sheet'!U39","v":"Sun"},"",13,0,0,0,0,0,0,0,0,0,0,0,0,{"$f":"IF('Entry Sheet'!$L$8='Calculation sheet'!W31,E31,0)","v":0}]
[26,{"$f":"'Entry Sheet'!D40","v":"2025-05-26"},null,{"$f":"'Entry Sheet'!J40","v":0},0,-40,-30,0,0,-40,-30,0,0,40,30,-40,-30,{"$f":"E32*'Entry Sheet'!$S$1","v":0},4746,"Cu`tI","Cu`tI","",{"$f":"'Entry Sheet'!U40","v":"Mon"},"",14,0,0,0,0,0,0,0,0,0,0,0,0,{"$f":"IF('Entry Sheet'!$L$8='Calculation sheet'!W32,E32,0)","v":0}]
[27,{"$f":"'Entry Sheet'!D41","v":"2025-05-27"},null,{"$f":"'Entry Sheet'!J41","v":0},0,-40,-30,0,0,-40,-30,0,0,40,30,-40,-30,{"$f":"E33*'Entry Sheet'!$S$1","v":0},4746,"Cu`tI","Cu`tI","",{"$f":"'Entry Sheet'!U41","v":"Tue"},"",14,0,0,0,0,0,0,0,0,0,0,0,0,{"$f":"IF('Entry Sheet'!$L$8='Calculation sheet'!W33,E33,0)","v":0}]
[28,{"$f":"'Entry Sheet'!D42","v":"2025-05-28"},null,{"$f":"'Entry Sheet'!J42","v":0},0,-40,-30,0,0,-40,-30,0,0,40,30,-40,-30,{"$f":"E34*'Entry Sheet'!$S$1","v":0},4746,"Cu`tI","Cu`tI","",{"$f":"'Entry Sheet'!U42","v":"Wed"},"",14,0,0,0,0,0,0,0,0,0,0,0,0,{"$f":"IF('Entry Sheet'!$L$8='Calculation sheet'!W34,E34,0)","v":0}]
[29,{"$f":"'Entry Sheet'!D43","v":"2025-05-29"},null,{"$f":"'Entry Sheet'!J43","v":0},{"$f":"D35","v":0},{"$f":"P34","v":-40},{"$f":"Q34","v":-30},0,0,{"$f":"F35+H35","v":-40},{"$f":"G35+I35","v":-30},0,0,{"$f":"N34+L35","v":40},{"$f":"O34+M35","v":30},{"$f":"J35-L35","v":-40},{"$f":"K35-M35","v":-30},{"$f":"E35*'Entry Sheet'!$S$1","v":0},{"$f":"S34+R35","v":4746},"Cu`tI","Cu`tI","",{"$f":"'Entry Sheet'!U43","v":"Thu"},"",14,0,0,0,0,0,0,0,0,0,0,0,0,{"$f":"IF('Entry Sheet'!$L$8='Calculation sheet'!W35,E35,0)","v":0}]
[30,{"$f":"'Entry Sheet'!D44","v":"2025-05-30"},null,{"$f":"'Entry Sheet'!J44","v":0},{"$f":"D36","v":0},-40,-30,0,0,-40,-30,0,0,40,30,-40,-30,{"$f":"E36*'Entry Sheet'!$S$1","v":0},4746,"Cu`tI","Cu`tI","",{"$f":"'Entry Sheet'!U44","v":"Fri"},"",14,0,0,0,0,0,0,0,0,0,0,0,0,{"$f":"IF('Entry Sheet'!$L$8='Calculation sheet'!W36,E36,0)","v":0}]
[31,{"$f":"'Entry Sheet'!D45","v":"2025-05-31"},null,{"$f":"'Entry Sheet'!J45","v":0},{"$f":"D37","v":0},{"$f":"P36","v":-40},{"$f":"Q36","v":-30},0,0,{"$f":"F37+H37","v":-40},{"$f":"G37+I37","v":-30},0,0,40,30,-40,-30,{"$f":"E37*'Entry Sheet'!$S$1","v":0},4746,"Cu`tI","Cu`tI","",{"$f":"'Entry Sheet'!U45","v":"Sat"},"",14,0,0,0,0,0,0,0,0,0,0,0,0,{"$f":"IF('Entry Sheet'!$L$8='Calculation sheet'!W37,E37,0)","v":0}]
[null,"joV",{"$f":"SUMIF(D7:D37,\">0\",C7:C37)","v":0},{"$f":"SUM(D7:D37)","v":700},{"$f":"SUM(E6:E37)","v":700},null,null,{"$f":"#REF!","v":{"$error":"#REF!"}},{"$f":"#REF!","v":{"$error":"#REF!"}},{"$f":"#REF!","v":{"$error":"#REF!"}},null,{"$f":"SUM(L7:L37)","v":40},{"$f":"SUM(M7:M37)","v":30},null,null,null,null,{"$f":"SUM(R7:R37)","v":4746},null,null,null,null,null,"Total",null,{"$f":"SUM(Z7:Z37)","v":0},{"$f":"SUM(AA7:AA37)","v":10},9,6,6,0,{"$f":"SUM(AF7:AF37)","v":0},5.7,0,0,9,0,{"$f":"SUM(AL7:AL37)","v":400}]
[null,null,null,null,null,null,null,null,null,null,null,null,null,null,null,null,null,{"$f":"E38*'Entry Sheet'!S1","v":4746}]
[null,null,null,null,null,null,null,null,null,null,null,null,null,null,null,null,null,{"$f":"IF(R38=R39,\"Match\",\"Error\")","v":"Match"}]

{"sheet":"Annual Report","index":4,"n_rows":618,"n_cols":18,"rows_kept":618,"cut":false,"hidden":false,"merged":[[1,15,2,15],[1,16,2,16],[1,17,2,17],[1,11,2,11],[1,12,2,12],[1,13,2,13],[1,14,2,14],[0,0,0,14],[1,1,1,2],[1,3,1,4],[1,5,1,6],[1,7,1,8],[1,9,2,9],[1,10,2,10]]}
["Month Wise Record"]
[null,"Opening Balance",null,"Receiving This Month",null,"Consumption (in Kg)",null,"Balance at End",null,"Total Students","Cookng Cost of All Std.","Fund Allocate at PFMS This Month","Fund Utilize AS PFMS (in RS.)","Balance Fund in PFMS","Fund Surplus/Short As Total Cost ","Total Pieces Fruit  Given","Amount of Food","Woking Days"]
["Month &Year","Wheat","Rice","Wheat","Rice","Wheat","Rice","Wheet","Rice"]
["2024-10-01",0,0,0,0,0,0,{"$f":"(B4+D4)-F4","v":0},{"$f":"(C4+E4)-G4","v":0},0,0,0,0,{"$f":"L4-M4","v":0},{"$f":"L4-K4","v":0}]
["2025-01-01",0,0,0,0,130,160,{"$f":"(B5+D5)-F5","v":-130},{"$f":"(C5+E5)-G5","v":-160},2900,17951,null,null,{"$f":"L5-M5","v":0},{"$f":"L5-K5","v":-17951},700,3500,6]
[null,null,null,null,null,null,null,0,0,null,null,null,null,0,0]
[null,null,null,null,null,null,null,0,0,null,null,null,null,0,0]
[null,null,null,null,null,null,null,0,0,null,null,null,null,0,0]
[null,null,null,null,null,null,null,0,0,null,null,null,null,0,0]
[null,null,null,null,null,null,null,0,0,null,null,null,null,0,0]
[null,null,null,null,null,null,null,0,0,null,null,null,null,0,0]
[null,null,null,null,null,null,null,0,0,null,null,null,null,0,0]
[null,null,null,null,null,null,null,0,0,null,null,null,null,0,0]
[null,null,null,null,null,null,null,0,0,null,null,null,null,0,0]
[null,null,null,null,null,null,null,0,0,null,null,null,null,0,0]
[null,null,null,null,null,null,null,0,0,null,null,null,null,0,0]
[null,null,null,null,null,null,null,0,0,null,null,null,null,0,0]
[null,null,null,null,null,null,null,0,0,null,null,null,null,0,0]
[null,null,null,null,null,null,null,0,0,null,null,null,null,0,0]
[null,null,null,null,null,null,null,0,0,null,null,null,null,0,0]
[null,null,null,null,null,null,null,0,0,null,null,null,null,0,0]
[null,null,null,null,null,null,null,0,0,null,null,null,null,0,0]
[null,null,null,null,null,null,null,0,0,null,null,null,null,0,0]
[null,null,null,null,null,null,null,0,0,null,null,null,null,0,0]
[null,null,null,null,null,null,null,0,0,null,null,null,null,0,0]
[null,null,null,null,null,null,null,0,0,null,null,null,null,0,0]
[null,null,null,null,null,null,null,0,0,null,null,null,null,0,0]
[null,null,null,null,null,null,null,0,0,null,null,null,null,0,0]
[null,null,null,null,null,null,null,0,0,null,null,null,null,0,0]
[null,null,null,null,null,null,null,0,0,null,null,null,null,0,0]
[null,null,null,null,null,null,null,0,0,null,null,null,null,0,0]
[null,null,null,null,null,null,null,0,0,null,null,null,null,0,0]
[null,null,null,null,null,null,null,0,0,null,null,null,null,0,0]
[null,null,null,null,null,null,null,0,0,null,null,null,null,0,0]
[null,null,null,null,null,null,null,0,0,null,null,null,null,0,0]
[null,null,null,null,null,null,null,0,0,null,null,null,null,0,0]
[null,null,null,null,null,null,null,0,0,null,null,null,null,0,0]
[null,null,null,null,null,null,null,0,0,null,null,null,null,0,0]
[null,null,null,null,null,null,null,0,0,null,null,null,null,0,0]
[null,null,null,null,null,null,null,0,0,null,null,null,null,0,0]
[null,null,null,null,null,null,null,0,0,null,null,null,null,0,0]
[null,null,null,null,null,null,null,0,0,null,null,null,null,0,0]
[null,null,null,null,null,null,null,0,0,null,null,null,null,0,0]
[null,null,null,null,null,null,null,0,0,null,null,null,null,0,0]
[null,null,null,null,null,null,null,0,0,null,null,null,null,0,0]
[null,null,null,null,null,null,null,0,0,null,null,null,null,0,0]
[null,null,null,null,null,null,null,0,0,null,null,null,null,0,0]
[null,null,null,null,null,null,null,0,0,null,null,null,null,0,0]
[null,null,null,null,null,null,null,0,0,null,null,null,null,0,0]
[null,null,null,null,null,null,null,0,0,null,null,null,null,0,0]
[null,null,null,null,null,null,null,0,0,null,null,null,null,0,0]
[null,null,null,null,null,null,null,0,0,null,null,null,null,0,0]
[null,null,null,null,null,null,null,0,0,null,null,null,null,0,0]
[null,null,null,null,null,null,null,0,0,null,null,null,null,0,0]
[null,null,null,null,null,null,null,0,0,null,null,null,null,0,0]
[null,null,null,null,null,null,null,0,0,null,null,null,null,0,0]
[null,null,null,null,null,null,null,0,0,null,null,null,null,0,0]
[null,null,null,null,null,null,null,0,0,null,null,null,null,0,0]
[null,null,null,null,null,null,null,0,0,null,null,null,null,0,0]
[null,null,null,null,null,null,null,0,0,null,null,null,null,0,0]
[null,null,null,null,null,null,null,0,0,null,null,null,null,0,0]
[null,null,null,null,null,null,null,0,0,null,null,null,null,0,0]
[null,null,null,null,null,null,null,0,0,null,null,null,null,0,0]
[null,null,null,null,null,null,null,0,0,null,null,null,null,0,0]
[null,null,null,null,null,null,null,0,0,null,null,null,null,0,0]
[null,null,null,null,null,null,null,0,0,null,null,null,null,0,0]
[null,null,null,null,null,null,null,0,0,null,null,null,null,0,0]
[null,null,null,null,null,null,null,0,0,null,null,null,null,0,0]
[null,null,null,null,null,null,null,{"$f":"(B69+D69)-F69","v":0},{"$f":"(C69+E69)-G69","v":0},null,null,null,null,{"$f":"L69-M69","v":0},{"$f":"L69-K69","v":0}]
[null,null,null,null,null,null,null,0,0,null,null,null,null,0,0]
[null,null,null,null,null,null,null,0,0,null,null,null,null,0,0]
[null,null,null,null,null,null,null,0,0,null,null,null,null,0,0]
[null,null,null,null,null,null,null,0,0,null,null,null,null,0,0]
[null,null,null,null,null,null,null,0,0,null,null,null,null,0,0]
[null,null,null,null,null,null,null,0,0,null,null,null,null,0,0]
[null,null,null,null,null,null,null,0,0,null,null,null,null,0,0]
[null,null,null,null,null,null,null,0,0,null,null,null,null,0,0]
[null,null,null,null,null,null,null,0,0,null,null,null,null,0,0]
[null,null,null,null,null,null,null,0,0,null,null,null,null,0,0]
[null,null,null,null,null,null,null,0,0,null,null,null,null,0,0]
[null,null,null,null,null,null,null,0,0,null,null,null,null,0,0]
[null,null,null,null,null,null,null,0,0,null,null,null,null,0,0]
[null,null,null,null,null,null,null,0,0,null,null,null,null,0,0]
[null,null,null,null,null,null,null,0,0,null,null,null,null,0,0]
[null,null,null,null,null,null,null,0,0,null,null,null,null,0,0]
[null,null,null,null,null,null,null,0,0,null,null,null,null,0,0]
[null,null,null,null,null,null,null,0,0,null,null,null,null,0,0]
[null,null,null,null,null,null,null,0,0,null,null,null,null,0,0]
[null,null,null,null,null,null,null,0,0,null,null,null,null,0,0]
[null,null,null,null,null,null,null,0,0,null,null,null,null,0,0]
[null,null,null,null,null,null,null,0,0,null,null,null,null,0,0]
[null,null,null,null,null,null,null,0,0,null,null,null,null,0,0]
[null,null,null,null,null,null,null,0,0,null,null,null,null,0,0]
[null,null,null,null,null,null,null,0,0,null,null,null,null,0,0]
[null,null,null,null,null,null,null,0,0,null,null,null,null,0,0]
[null,null,null,null,null,null,null,0,0,null,null,null,null,0,0]
[null,null,null,null,null,null,null,0,0,null,null,null,null,0,0]
[null,null,null,null,null,null,null,0,0,null,null,null,null,0,0]
[null,null,null,null,null,null,null,0,0,null,null,null,null,0,0]
[null,null,null,null,null,null,null,0,0,null,null,null,null,0,0]
[null,null,null,null,null,null,null,0,0,null,null,null,null,0,0]
[null,null,null,null,null,null,null,0,0,null,null,null,null,0,0]
[null,null,null,null,null,null,null,0,0,null,null,null,null,0,0]
[null,null,null,null,null,null,null,0,0,null,null,null,null,0,0]
[null,null,null,null,null,null,null,0,0,null,null,null,null,0,0]
[null,null,null,null,null,null,null,0,0,null,null,null,null,0,0]
[null,null,null,null,null,null,null,0,0,null,null,null,null,0,0]
[null,null,null,null,null,null,null,0,0,null,null,null,null,0,0]
[null,null,null,null,null,null,null,0,0,null,null,null,null,0,0]
[null,null,null,null,null,null,null,0,0,null,null,null,null,0,0]
[null,null,null,null,null,null,null,0,0,null,null,null,null,0,0]
[null,null,null,null,null,null,null,0,0,null,null,null,null,0,0]
[null,null,null,null,null,null,null,0,0,null,null,null,null,0,0]
[null,null,null,null,null,null,null,0,0,null,null,null,null,0,0]
[null,null,null,null,null,null,null,0,0,null,null,null,null,0,0]
[null,null,null,null,null,null,null,0,0,null,null,null,null,0,0]
[null,null,null,null,null,null,null,0,0,null,null,null,null,0,0]
[null,null,null,null,null,null,null,0,0,null,null,null,null,0,0]
[null,null,null,null,null,null,null,0,0,null,null,null,null,0,0]
[null,null,null,null,null,null,null,0,0,null,null,null,null,0,0]
[null,null,null,null,null,null,null,0,0,null,null,null,null,0,0]
[null,null,null,null,null,null,null,0,0,null,null,null,null,0,0]
[null,null,null,null,null,null,null,0,0,null,null,null,null,0,0]
[null,null,null,null,null,null,null,0,0,null,null,null,null,0,0]
[null,null,null,null,null,null,null,0,0,null,null,null,null,0,0]
[null,null,null,null,null,null,null,0,0,null,null,null,null,0,0]
[null,null,null,null,null,null,null,0,0,null,null,null,null,0,0]
[null,null,null,null,null,null,null,0,0,null,null,null,null,0,0]
[null,null,null,null,null,null,null,0,0,null,null,null,null,0,0]
[null,null,null,null,null,null,null,0,0,null,null,null,null,0,0]
[null,null,null,null,null,null,null,0,0,null,null,null,null,0,0]
[null,null,null,null,null,null,null,0,0,null,null,null,null,0,0]
[null,null,null,null,null,null,null,{"$f":"(B133+D133)-F133","v":0},{"$f":"(C133+E133)-G133","v":0},null,null,null,null,{"$f":"L133-M133","v":0},{"$f":"L133-K133","v":0}]
[null,null,null,null,null,null,null,0,0,null,null,null,null,0,0]
[null,null,null,null,null,null,null,0,0,null,null,null,null,0,0]
[null,null,null,null,null,null,null,0,0,null,null,null,null,0,0]
[null,null,null,null,null,null,null,0,0,null,null,null,null,0,0]
[null,null,null,null,null,null,null,0,0,null,null,null,null,0,0]
[null,null,null,null,null,null,null,0,0,null,null,null,null,0,0]
[null,null,null,null,null,null,null,0,0,null,null,null,null,0,0]
[null,null,null,null,null,null,null,0,0,null,null,null,null,0,0]
[null,null,null,null,null,null,null,0,0,null,null,null,null,0,0]
[null,null,null,null,null,null,null,0,0,null,null,null,null,0,0]
[null,null,null,null,null,null,null,0,0,null,null,null,null,0,0]
[null,null,null,null,null,null,null,0,0,null,null,null,null,0,0]
[null,null,null,null,null,null,null,0,0,null,null,null,null,0,0]
[null,null,null,null,null,null,null,0,0,null,null,null,null,0,0]
[null,null,null,null,null,null,null,0,0,null,null,null,null,0,0]
[null,null,null,null,null,null,null,0,0,null,null,null,null,0,0]
[null,null,null,null,null,null,null,0,0,null,null,null,null,0,0]
[null,null,null,null,null,null,null,0,0,null,null,null,null,0,0]
[null,null,null,null,null,null,null,0,0,null,null,null,null,0,0]
[null,null,null,null,null,null,null,0,0,null,null,null,null,0,0]
[null,null,null,null,null,null,null,0,0,null,null,null,null,0,0]
[null,null,null,null,null,null,null,0,0,null,null,null,null,0,0]
[null,null,null,null,null,null,null,0,0,null,null,null,null,0,0]
[null,null,null,null,null,null,null,0,0,null,null,null,null,0,0]
[null,null,null,null,null,null,null,0,0,null,null,null,null,0,0]
[null,null,null,null,null,null,null,0,0,null,null,null,null,0,0]
[null,null,null,null,null,null,null,0,0,null,null,null,null,0,0]
[null,null,null,null,null,null,null,0,0,null,null,null,null,0,0]
[null,null,null,null,null,null,null,0,0,null,null,null,null,0,0]
[null,null,null,null,null,null,null,0,0,null,null,null,null,0,0]
[null,null,null,null,null,null,null,0,0,null,null,null,null,0,0]
[null,null,null,null,null,null,null,0,0,null,null,null,null,0,0]
[null,null,null,null,null,null,null,0,0,null,null,null,null,0,0]
[null,null,null,null,null,null,null,0,0,null,null,null,null,0,0]
[null,null,null,null,null,null,null,0,0,null,null,null,null,0,0]
[null,null,null,null,null,null,null,0,0,null,null,null,null,0,0]
[null,null,null,null,null,null,null,0,0,null,null,null,null,0,0]
[null,null,null,null,null,null,null,0,0,null,null,null,null,0,0]
[null,null,null,null,null,null,null,0,0,null,null,null,null,0,0]
[null,null,null,null,null,null,null,0,0,null,null,null,null,0,0]
[null,null,null,null,null,null,null,0,0,null,null,null,null,0,0]
[null,null,null,null,null,null,null,0,0,null,null,null,null,0,0]
[null,null,null,null,null,null,null,0,0,null,null,null,null,0,0]
[null,null,null,null,null,null,null,0,0,null,null,null,null,0,0]
[null,null,null,null,null,null,null,0,0,null,null,null,null,0,0]
[null,null,null,null,null,null,null,0,0,null,null,null,null,0,0]
[null,null,null,null,null,null,null,0,0,null,null,null,null,0,0]
[null,null,null,null,null,null,null,0,0,null,null,null,null,0,0]
[null,null,null,null,null,null,null,0,0,null,null,null,null,0,0]
[null,null,null,null,null,null,null,0,0,null,null,null,null,0,0]
[null,null,null,null,null,null,null,0,0,null,null,null,null,0,0]
[null,null,null,null,null,null,null,0,0,null,null,null,null,0,0]
[null,null,null,null,null,null,null,0,0,null,null,null,null,0,0]
[null,null,null,null,null,null,null,0,0,null,null,null,null,0,0]
[null,null,null,null,null,null,null,0,0,null,null,null,null,0,0]
[null,null,null,null,null,null,null,0,0,null,null,null,null,0,0]
[null,null,null,null,null,null,null,0,0,null,null,null,null,0,0]
[null,null,null,null,null,null,null,0,0,null,null,null,null,0,0]
[null,null,null,null,null,null,null,0,0,null,null,null,null,0,0]
[null,null,null,null,null,null,null,0,0,null,null,null,null,0,0]
[null,null,null,null,null,null,null,0,0,null,null,null,null,0,0]
[null,null,null,null,null,null,null,0,0,null,null,null,null,0,0]
[null,null,null,null,null,null,null,0,0,null,null,null,null,0,0]
[null,null,null,null,null,null,null,{"$f":"(B197+D197)-F197","v":0},{"$f":"(C197+E197)-G197","v":0},null,null,null,null,{"$f":"L197-M197","v":0},{"$f":"L197-K197","v":0}]
[null,null,null,null,null,null,null,0,0,null,null,null,null,0,0]
[null,null,null,null,null,null,null,0,0,null,null,null,null,0,0]
[null,null,null,null,null,null,null,0,0,null,null,null,null,0,0]
[null,null,null,null,null,null,null,0,0,null,null,null,null,0,0]
[null,null,null,null,null,null,null,0,0,null,null,null,null,0,0]
[null,null,null,null,null,null,null,0,0,null,null,null,null,0,0]
[null,null,null,null,null,null,null,0,0,null,null,null,null,0,0]
[null,null,null,null,null,null,null,0,0,null,null,null,null,0,0]
[null,null,null,null,null,null,null,0,0,null,null,null,null,0,0]
[null,null,null,null,null,null,null,0,0,null,null,null,null,0,0]
[null,null,null,null,null,null,null,0,0,null,null,null,null,0,0]
[null,null,null,null,null,null,null,0,0,null,null,null,null,0,0]
[null,null,null,null,null,null,null,0,0,null,null,null,null,0,0]
[null,null,null,null,null,null,null,0,0,null,null,null,null,0,0]
[null,null,null,null,null,null,null,0,0,null,null,null,null,0,0]
[null,null,null,null,null,null,null,0,0,null,null,null,null,0,0]
[null,null,null,null,null,null,null,0,0,null,null,null,null,0,0]
[null,null,null,null,null,null,null,0,0,null,null,null,null,0,0]
[null,null,null,null,null,null,null,0,0,null,null,null,null,0,0]
[null,null,null,null,null,null,null,0,0,null,null,null,null,0,0]
[null,null,null,null,null,null,null,0,0,null,null,null,null,0,0]
[null,null,null,null,null,null,null,0,0,null,null,null,null,0,0]
[null,null,null,null,null,null,null,0,0,null,null,null,null,0,0]
[null,null,null,null,null,null,null,0,0,null,null,null,null,0,0]
[null,null,null,null,null,null,null,0,0,null,null,null,null,0,0]
[null,null,null,null,null,null,null,0,0,null,null,null,null,0,0]
[null,null,null,null,null,null,null,0,0,null,null,null,null,0,0]
[null,null,null,null,null,null,null,0,0,null,null,null,null,0,0]
[null,null,null,null,null,null,null,0,0,null,null,null,null,0,0]
[null,null,null,null,null,null,null,0,0,null,null,null,null,0,0]
[null,null,null,null,null,null,null,0,0,null,null,null,null,0,0]
[null,null,null,null,null,null,null,0,0,null,null,null,null,0,0]
[null,null,null,null,null,null,null,0,0,null,null,null,null,0,0]
[null,null,null,null,null,null,null,0,0,null,null,null,null,0,0]
[null,null,null,null,null,null,null,0,0,null,null,null,null,0,0]
[null,null,null,null,null,null,null,0,0,null,null,null,null,0,0]
[null,null,null,null,null,null,null,0,0,null,null,null,null,0,0]
[null,null,null,null,null,null,null,0,0,null,null,null,null,0,0]
[null,null,null,null,null,null,null,0,0,null,null,null,null,0,0]
[null,null,null,null,null,null,null,0,0,null,null,null,null,0,0]
[null,null,null,null,null,null,null,0,0,null,null,null,null,0,0]
[null,null,null,null,null,null,null,0,0,null,null,null,null,0,0]
[null,null,null,null,null,null,null,0,0,null,null,null,null,0,0]
[null,null,null,null,null,null,null,0,0,null,null,null,null,0,0]
[null,null,null,null,null,null,null,0,0,null,null,null,null,0,0]
[null,null,null,null,null,null,null,0,0,null,null,null,null,0,0]
[null,null,null,null,null,null,null,0,0,null,null,null,null,0,0]
[null,null,null,null,null,null,null,0,0,null,null,null,null,0,0]
[null,null,null,null,null,null,null,0,0,null,null,null,null,0,0]
[null,null,null,null,null,null,null,0,0,null,null,null,null,0,0]
[null,null,null,null,null,null,null,0,0,null,null,null,null,0,0]
[null,null,null,null,null,null,null,0,0,null,null,null,null,0,0]
[null,null,null,null,null,null,null,0,0,null,null,null,null,0,0]
[null,null,null,null,null,null,null,0,0,null,null,null,null,0,0]
[null,null,null,null,null,null,null,0,0,null,null,null,null,0,0]
[null,null,null,null,null,null,null,0,0,null,null,null,null,0,0]
[null,null,null,null,null,null,null,0,0,null,null,null,null,0,0]
[null,null,null,null,null,null,null,0,0,null,null,null,null,0,0]
[null,null,null,null,null,null,null,0,0,null,null,null,null,0,0]
[null,null,null,null,null,null,null,0,0,null,null,null,null,0,0]
[null,null,null,null,null,null,null,0,0,null,null,null,null,0,0]
[null,null,null,null,null,null,null,0,0,null,null,null,null,0,0]
[null,null,null,null,null,null,null,0,0,null,null,null,null,0,0]
[null,null,null,null,null,null,null,{"$f":"(B261+D261)-F261","v":0},{"$f":"(C261+E261)-G261","v":0},null,null,null,null,{"$f":"L261-M261","v":0},{"$f":"L261-K261","v":0}]
[null,null,null,null,null,null,null,0,0,null,null,null,null,0,0]
[null,null,null,null,null,null,null,0,0,null,null,null,null,0,0]
[null,null,null,null,null,null,null,0,0,null,null,null,null,0,0]
[null,null,null,null,null,null,null,0,0,null,null,null,null,0,0]
[null,null,null,null,null,null,null,0,0,null,null,null,null,0,0]
[null,null,null,null,null,null,null,0,0,null,null,null,null,0,0]
[null,null,null,null,null,null,null,0,0,null,null,null,null,0,0]
[null,null,null,null,null,null,null,0,0,null,null,null,null,0,0]
[null,null,null,null,null,null,null,0,0,null,null,null,null,0,0]
[null,null,null,null,null,null,null,0,0,null,null,null,null,0,0]
[null,null,null,null,null,null,null,0,0,null,null,null,null,0,0]
[null,null,null,null,null,null,null,0,0,null,null,null,null,0,0]
[null,null,null,null,null,null,null,0,0,null,null,null,null,0,0]
[null,null,null,null,null,null,null,0,0,null,null,null,null,0,0]
[null,null,null,null,null,null,null,0,0,null,null,null,null,0,0]
[null,null,null,null,null,null,null,0,0,null,null,null,null,0,0]
[null,null,null,null,null,null,null,0,0,null,null,null,null,0,0]
[null,null,null,null,null,null,null,0,0,null,null,null,null,0,0]
[null,null,null,null,null,null,null,0,0,null,null,null,null,0,0]
[null,null,null,null,null,null,null,0,0,null,null,null,null,0,0]
[null,null,null,null,null,null,null,0,0,null,null,null,null,0,0]
[null,null,null,null,null,null,null,0,0,null,null,null,null,0,0]
[null,null,null,null,null,null,null,0,0,null,null,null,null,0,0]
[null,null,null,null,null,null,null,0,0,null,null,null,null,0,0]
[null,null,null,null,null,null,null,0,0,null,null,null,null,0,0]
[null,null,null,null,null,null,null,0,0,null,null,null,null,0,0]
[null,null,null,null,null,null,null,0,0,null,null,null,null,0,0]
[null,null,null,null,null,null,null,0,0,null,null,null,null,0,0]
[null,null,null,null,null,null,null,0,0,null,null,null,null,0,0]
[null,null,null,null,null,null,null,0,0,null,null,null,null,0,0]
[null,null,null,null,null,null,null,0,0,null,null,null,null,0,0]
[null,null,null,null,null,null,null,0,0,null,null,null,null,0,0]
[null,null,null,null,null,null,null,0,0,null,null,null,null,0,0]
[null,null,null,null,null,null,null,0,0,null,null,null,null,0,0]
[null,null,null,null,null,null,null,0,0,null,null,null,null,0,0]
[null,null,null,null,null,null,null,0,0,null,null,null,null,0,0]
[null,null,null,null,null,null,null,0,0,null,null,null,null,0,0]
[null,null,null,null,null,null,null,0,0,null,null,null,null,0,0]
[null,null,null,null,null,null,null,0,0,null,null,null,null,0,0]
[null,null,null,null,null,null,null,0,0,null,null,null,null,0,0]
[null,null,null,null,null,null,null,0,0,null,null,null,null,0,0]
[null,null,null,null,null,null,null,0,0,null,null,null,null,0,0]
[null,null,null,null,null,null,null,0,0,null,null,null,null,0,0]
[null,null,null,null,null,null,null,0,0,null,null,null,null,0,0]
[null,null,null,null,null,null,null,0,0,null,null,null,null,0,0]
[null,null,null,null,null,null,null,0,0,null,null,null,null,0,0]
[null,null,null,null,null,null,null,0,0,null,null,null,null,0,0]
[null,null,null,null,null,null,null,0,0,null,null,null,null,0,0]
[null,null,null,null,null,null,null,0,0,null,null,null,null,0,0]
[null,null,null,null,null,null,null,0,0,null,null,null,null,0,0]
[null,null,null,null,null,null,null,0,0,null,null,null,null,0,0]
[null,null,null,null,null,null,null,0,0,null,null,null,null,0,0]
[null,null,null,null,null,null,null,0,0,null,null,null,null,0,0]
[null,null,null,null,null,null,null,0,0,null,null,null,null,0,0]
[null,null,null,null,null,null,null,0,0,null,null,null,null,0,0]
[null,null,null,null,null,null,null,0,0,null,null,null,null,0,0]
[null,null,null,null,null,null,null,0,0,null,null,null,null,0,0]
[null,null,null,null,null,null,null,0,0,null,null,null,null,0,0]
[null,null,null,null,null,null,null,0,0,null,null,null,null,0,0]
[null,null,null,null,null,null,null,0,0,null,null,null,null,0,0]
[null,null,null,null,null,null,null,0,0,null,null,null,null,0,0]
[null,null,null,null,null,null,null,0,0,null,null,null,null,0,0]
[null,null,null,null,null,null,null,0,0,null,null,null,null,0,0]
[null,null,null,null,null,null,null,{"$f":"(B325+D325)-F325","v":0},{"$f":"(C325+E325)-G325","v":0},null,null,null,null,{"$f":"L325-M325","v":0},{"$f":"L325-K325","v":0}]
[null,null,null,null,null,null,null,0,0,null,null,null,null,0,0]
[null,null,null,null,null,null,null,0,0,null,null,null,null,0,0]
[null,null,null,null,null,null,null,0,0,null,null,null,null,0,0]
[null,null,null,null,null,null,null,0,0,null,null,null,null,0,0]
[null,null,null,null,null,null,null,0,0,null,null,null,null,0,0]
[null,null,null,null,null,null,null,0,0,null,null,null,null,0,0]
[null,null,null,null,null,null,null,0,0,null,null,null,null,0,0]
[null,null,null,null,null,null,null,0,0,null,null,null,null,0,0]
[null,null,null,null,null,null,null,0,0,null,null,null,null,0,0]
[null,null,null,null,null,null,null,0,0,null,null,null,null,0,0]
[null,null,null,null,null,null,null,0,0,null,null,null,null,0,0]
[null,null,null,null,null,null,null,0,0,null,null,null,null,0,0]
[null,null,null,null,null,null,null,0,0,null,null,null,null,0,0]
[null,null,null,null,null,null,null,0,0,null,null,null,null,0,0]
[null,null,null,null,null,null,null,0,0,null,null,null,null,0,0]
[null,null,null,null,null,null,null,0,0,null,null,null,null,0,0]
[null,null,null,null,null,null,null,0,0,null,null,null,null,0,0]
[null,null,null,null,null,null,null,0,0,null,null,null,null,0,0]
[null,null,null,null,null,null,null,0,0,null,null,null,null,0,0]
[null,null,null,null,null,null,null,0,0,null,null,null,null,0,0]
[null,null,null,null,null,null,null,0,0,null,null,null,null,0,0]
[null,null,null,null,null,null,null,0,0,null,null,null,null,0,0]
[null,null,null,null,null,null,null,0,0,null,null,null,null,0,0]
[null,null,null,null,null,null,null,0,0,null,null,null,null,0,0]
[null,null,null,null,null,null,null,0,0,null,null,null,null,0,0]
[null,null,null,null,null,null,null,0,0,null,null,null,null,0,0]
[null,null,null,null,null,null,null,0,0,null,null,null,null,0,0]
[null,null,null,null,null,null,null,0,0,null,null,null,null,0,0]
[null,null,null,null,null,null,null,0,0,null,null,null,null,0,0]
[null,null,null,null,null,null,null,0,0,null,null,null,null,0,0]
[null,null,null,null,null,null,null,0,0,null,null,null,null,0,0]
[null,null,null,null,null,null,null,0,0,null,null,null,null,0,0]
[null,null,null,null,null,null,null,0,0,null,null,null,null,0,0]
[null,null,null,null,null,null,null,0,0,null,null,null,null,0,0]
[null,null,null,null,null,null,null,0,0,null,null,null,null,0,0]
[null,null,null,null,null,null,null,0,0,null,null,null,null,0,0]
[null,null,null,null,null,null,null,0,0,null,null,null,null,0,0]
[null,null,null,null,null,null,null,0,0,null,null,null,null,0,0]
[null,null,null,null,null,null,null,0,0,null,null,null,null,0,0]
[null,null,null,null,null,null,null,0,0,null,null,null,null,0,0]
[null,null,null,null,null,null,null,0,0,null,null,null,null,0,0]
[null,null,null,null,null,null,null,0,0,null,null,null,null,0,0]
[null,null,null,null,null,null,null,0,0,null,null,null,null,0,0]
[null,null,null,null,null,null,null,0,0,null,null,null,null,0,0]
[null,null,null,null,null,null,null,0,0,null,null,null,null,0,0]
[null,null,null,null,null,null,null,0,0,null,null,null,null,0,0]
[null,null,null,null,null,null,null,0,0,null,null,null,null,0,0]
[null,null,null,null,null,null,null,0,0,null,null,null,null,0,0]
[null,null,null,null,null,null,null,0,0,null,null,null,null,0,0]
[null,null,null,null,null,null,null,0,0,null,null,null,null,0,0]
[null,null,null,null,null,null,null,0,0,null,null,null,null,0,0]
[null,null,null,null,null,null,null,0,0,null,null,null,null,0,0]
[null,null,null,null,null,null,null,0,0,null,null,null,null,0,0]
[null,null,null,null,null,null,null,0,0,null,null,null,null,0,0]
[null,null,null,null,null,null,null,0,0,null,null,null,null,0,0]
[null,null,null,null,null,null,null,0,0,null,null,null,null,0,0]
[null,null,null,null,null,null,null,0,0,null,null,null,null,0,0]
[null,null,null,null,null,null,null,0,0,null,null,null,null,0,0]
[null,null,null,null,null,null,null,0,0,null,null,null,null,0,0]
[null,null,null,null,null,null,null,0,0,null,null,null,null,0,0]
[null,null,null,null,null,null,null,0,0,null,null,null,null,0,0]
[null,null,null,null,null,null,null,0,0,null,null,null,null,0,0]
[null,null,null,null,null,null,null,0,0,null,null,null,null,0,0]
[null,null,null,null,null,null,null,{"$f":"(B389+D389)-F389","v":0},{"$f":"(C389+E389)-G389","v":0},null,null,null,null,{"$f":"L389-M389","v":0},{"$f":"L389-K389","v":0}]
[null,null,null,null,null,null,null,0,0,null,null,null,null,0,0]
[null,null,null,null,null,null,null,0,0,null,null,null,null,0,0]
[null,null,null,null,null,null,null,0,0,null,null,null,null,0,0]
[null,null,null,null,null,null,null,0,0,null,null,null,null,0,0]
[null,null,null,null,null,null,null,0,0,null,null,null,null,0,0]
[null,null,null,null,null,null,null,0,0,null,null,null,null,0,0]
[null,null,null,null,null,null,null,0,0,null,null,null,null,0,0]
[null,null,null,null,null,null,null,0,0,null,null,null,null,0,0]
[null,null,null,null,null,null,null,0,0,null,null,null,null,0,0]
[null,null,null,null,null,null,null,0,0,null,null,null,null,0,0]
[null,null,null,null,null,null,null,0,0,null,null,null,null,0,0]
[null,null,null,null,null,null,null,0,0,null,null,null,null,0,0]
[null,null,null,null,null,null,null,0,0,null,null,null,null,0,0]
[null,null,null,null,null,null,null,0,0,null,null,null,null,0,0]
[null,null,null,null,null,null,null,0,0,null,null,null,null,0,0]
[null,null,null,null,null,null,null,0,0,null,null,null,null,0,0]
[null,null,null,null,null,null,null,0,0,null,null,null,null,0,0]
[null,null,null,null,null,null,null,0,0,null,null,null,null,0,0]
[null,null,null,null,null,null,null,0,0,null,null,null,null,0,0]
[null,null,null,null,null,null,null,0,0,null,null,null,null,0,0]
[null,null,null,null,null,null,null,0,0,null,null,null,null,0,0]
[null,null,null,null,null,null,null,0,0,null,null,null,null,0,0]
[null,null,null,null,null,null,null,0,0,null,null,null,null,0,0]
[null,null,null,null,null,null,null,0,0,null,null,null,null,0,0]
[null,null,null,null,null,null,null,0,0,null,null,null,null,0,0]
[null,null,null,null,null,null,null,0,0,null,null,null,null,0,0]
[null,null,null,null,null,null,null,0,0,null,null,null,null,0,0]
[null,null,null,null,null,null,null,0,0,null,null,null,null,0,0]
[null,null,null,null,null,null,null,0,0,null,null,null,null,0,0]
[null,null,null,null,null,null,null,0,0,null,null,null,null,0,0]
[null,null,null,null,null,null,null,0,0,null,null,null,null,0,0]
[null,null,null,null,null,null,null,0,0,null,null,null,null,0,0]
[null,null,null,null,null,null,null,0,0,null,null,null,null,0,0]
[null,null,null,null,null,null,null,0,0,null,null,null,null,0,0]
[null,null,null,null,null,null,null,0,0,null,null,null,null,0,0]
[null,null,null,null,null,null,null,0,0,null,null,null,null,0,0]
[null,null,null,null,null,null,null,0,0,null,null,null,null,0,0]
[null,null,null,null,null,null,null,0,0,null,null,null,null,0,0]
[null,null,null,null,null,null,null,0,0,null,null,null,null,0,0]
[null,null,null,null,null,null,null,0,0,null,null,null,null,0,0]
[null,null,null,null,null,null,null,0,0,null,null,null,null,0,0]
[null,null,null,null,null,null,null,0,0,null,null,null,null,0,0]
[null,null,null,null,null,null,null,0,0,null,null,null,null,0,0]
[null,null,null,null,null,null,null,0,0,null,null,null,null,0,0]
[null,null,null,null,null,null,null,0,0,null,null,null,null,0,0]
[null,null,null,null,null,null,null,0,0,null,null,null,null,0,0]
[null,null,null,null,null,null,null,0,0,null,null,null,null,0,0]
[null,null,null,null,null,null,null,0,0,null,null,null,null,0,0]
[null,null,null,null,null,null,null,0,0,null,null,null,null,0,0]
[null,null,null,null,null,null,null,0,0,null,null,null,null,0,0]
[null,null,null,null,null,null,null,0,0,null,null,null,null,0,0]
[null,null,null,null,null,null,null,0,0,null,null,null,null,0,0]
[null,null,null,null,null,null,null,0,0,null,null,null,null,0,0]
[null,null,null,null,null,null,null,0,0,null,null,null,null,0,0]
[null,null,null,null,null,null,null,0,0,null,null,null,null,0,0]
[null,null,null,null,null,null,null,0,0,null,null,null,null,0,0]
[null,null,null,null,null,null,null,0,0,null,null,null,null,0,0]
[null,null,null,null,null,null,null,0,0,null,null,null,null,0,0]
[null,null,null,null,null,null,null,0,0,null,null,null,null,0,0]
[null,null,null,null,null,null,null,0,0,null,null,null,null,0,0]
[null,null,null,null,null,null,null,0,0,null,null,null,null,0,0]
[null,null,null,null,null,null,null,0,0,null,null,null,null,0,0]
[null,null,null,null,null,null,null,0,0,null,null,null,null,0,0]
[null,null,null,null,null,null,null,{"$f":"(B453+D453)-F453","v":0},{"$f":"(C453+E453)-G453","v":0},null,null,null,null,{"$f":"L453-M453","v":0},{"$f":"L453-K453","v":0}]
[null,null,null,null,null,null,null,0,0,null,null,null,null,0,0]
[null,null,null,null,null,null,null,0,0,null,null,null,null,0,0]
[null,null,null,null,null,null,null,0,0,null,null,null,null,0,0]
[null,null,null,null,null,null,null,0,0,null,null,null,null,0,0]
[null,null,null,null,null,null,null,0,0,null,null,null,null,0,0]
[null,null,null,null,null,null,null,0,0,null,null,null,null,0,0]
[null,null,null,null,null,null,null,0,0,null,null,null,null,0,0]
[null,null,null,null,null,null,null,0,0,null,null,null,null,0,0]
[null,null,null,null,null,null,null,0,0,null,null,null,null,0,0]
[null,null,null,null,null,null,null,0,0,null,null,null,null,0,0]
[null,null,null,null,null,null,null,0,0,null,null,null,null,0,0]
[null,null,null,null,null,null,null,0,0,null,null,null,null,0,0]
[null,null,null,null,null,null,null,0,0,null,null,null,null,0,0]
[null,null,null,null,null,null,null,0,0,null,null,null,null,0,0]
[null,null,null,null,null,null,null,0,0,null,null,null,null,0,0]
[null,null,null,null,null,null,null,0,0,null,null,null,null,0,0]
[null,null,null,null,null,null,null,0,0,null,null,null,null,0,0]
[null,null,null,null,null,null,null,0,0,null,null,null,null,0,0]
[null,null,null,null,null,null,null,0,0,null,null,null,null,0,0]
[null,null,null,null,null,null,null,0,0,null,null,null,null,0,0]
[null,null,null,null,null,null,null,0,0,null,null,null,null,0,0]
[null,null,null,null,null,null,null,0,0,null,null,null,null,0,0]
[null,null,null,null,null,null,null,0,0,null,null,null,null,0,0]
[null,null,null,null,null,null,null,0,0,null,null,null,null,0,0]
[null,null,null,null,null,null,null,0,0,null,null,null,null,0,0]
[null,null,null,null,null,null,null,0,0,null,null,null,null,0,0]
[null,null,null,null,null,null,null,0,0,null,null,null,null,0,0]
[null,null,null,null,null,null,null,0,0,null,null,null,null,0,0]
[null,null,null,null,null,null,null,0,0,null,null,null,null,0,0]
[null,null,null,null,null,null,null,0,0,null,null,null,null,0,0]
[null,null,null,null,null,null,null,0,0,null,null,null,null,0,0]
[null,null,null,null,null,null,null,0,0,null,null,null,null,0,0]
[null,null,null,null,null,null,null,0,0,null,null,null,null,0,0]
[null,null,null,null,null,null,null,0,0,null,null,null,null,0,0]
[null,null,null,null,null,null,null,0,0,null,null,null,null,0,0]
[null,null,null,null,null,null,null,0,0,null,null,null,null,0,0]
[null,null,null,null,null,null,null,0,0,null,null,null,null,0,0]
[null,null,null,null,null,null,null,0,0,null,null,null,null,0,0]
[null,null,null,null,null,null,null,0,0,null,null,null,null,0,0]
[null,null,null,null,null,null,null,0,0,null,null,null,null,0,0]
[null,null,null,null,null,null,null,0,0,null,null,null,null,0,0]
[null,null,null,null,null,null,null,0,0,null,null,null,null,0,0]
[null,null,null,null,null,null,null,0,0,null,null,null,null,0,0]
[null,null,null,null,null,null,null,0,0,null,null,null,null,0,0]
[null,null,null,null,null,null,null,0,0,null,null,null,null,0,0]
[null,null,null,null,null,null,null,0,0,null,null,null,null,0,0]
[null,null,null,null,null,null,null,0,0,null,null,null,null,0,0]
[null,null,null,null,null,null,null,0,0,null,null,null,null,0,0]
[null,null,null,null,null,null,null,0,0,null,null,null,null,0,0]
[null,null,null,null,null,null,null,0,0,null,null,null,null,0,0]
[null,null,null,null,null,null,null,0,0,null,null,null,null,0,0]
[null,null,null,null,null,null,null,0,0,null,null,null,null,0,0]
[null,null,null,null,null,null,null,0,0,null,null,null,null,0,0]
[null,null,null,null,null,null,null,0,0,null,null,null,null,0,0]
[null,null,null,null,null,null,null,0,0,null,null,null,null,0,0]
[null,null,null,null,null,null,null,0,0,null,null,null,null,0,0]
[null,null,null,null,null,null,null,0,0,null,null,null,null,0,0]
[null,null,null,null,null,null,null,0,0,null,null,null,null,0,0]
[null,null,null,null,null,null,null,0,0,null,null,null,null,0,0]
[null,null,null,null,null,null,null,0,0,null,null,null,null,0,0]
[null,null,null,null,null,null,null,0,0,null,null,null,null,0,0]
[null,null,null,null,null,null,null,0,0,null,null,null,null,0,0]
[null,null,null,null,null,null,null,0,0,null,null,null,null,0,0]
[null,null,null,null,null,null,null,{"$f":"(B517+D517)-F517","v":0},{"$f":"(C517+E517)-G517","v":0},null,null,null,null,{"$f":"L517-M517","v":0},{"$f":"L517-K517","v":0}]
[null,null,null,null,null,null,null,0,0,null,null,null,null,0,0]
[null,null,null,null,null,null,null,0,0,null,null,null,null,0,0]
[null,null,null,null,null,null,null,0,0,null,null,null,null,0,0]
[null,null,null,null,null,null,null,0,0,null,null,null,null,0,0]
[null,null,null,null,null,null,null,0,0,null,null,null,null,0,0]
[null,null,null,null,null,null,null,0,0,null,null,null,null,0,0]
[null,null,null,null,null,null,null,0,0,null,null,null,null,0,0]
[null,null,null,null,null,null,null,0,0,null,null,null,null,0,0]
[null,null,null,null,null,null,null,0,0,null,null,null,null,0,0]
[null,null,null,null,null,null,null,0,0,null,null,null,null,0,0]
[null,null,null,null,null,null,null,0,0,null,null,null,null,0,0]
[null,null,null,null,null,null,null,0,0,null,null,null,null,0,0]
[null,null,null,null,null,null,null,0,0,null,null,null,null,0,0]
[null,null,null,null,null,null,null,0,0,null,null,null,null,0,0]
[null,null,null,null,null,null,null,0,0,null,null,null,null,0,0]
[null,null,null,null,null,null,null,0,0,null,null,null,null,0,0]
[null,null,null,null,null,null,null,0,0,null,null,null,null,0,0]
[null,null,null,null,null,null,null,0,0,null,null,null,null,0,0]
[null,null,null,null,null,null,null,0,0,null,null,null,null,0,0]
[null,null,null,null,null,null,null,0,0,null,null,null,null,0,0]
[null,null,null,null,null,null,null,0,0,null,null,null,null,0,0]
[null,null,null,null,null,null,null,0,0,null,null,null,null,0,0]
[null,null,null,null,null,null,null,0,0,null,null,null,null,0,0]
[null,null,null,null,null,null,null,0,0,null,null,null,null,0,0]
[null,null,null,null,null,null,null,0,0,null,null,null,null,0,0]
[null,null,null,null,null,null,null,0,0,null,null,null,null,0,0]
[null,null,null,null,null,null,null,0,0,null,null,null,null,0,0]
[null,null,null,null,null,null,null,0,0,null,null,null,null,0,0]
[null,null,null,null,null,null,null,0,0,null,null,null,null,0,0]
[null,null,null,null,null,null,null,0,0,null,null,null,null,0,0]
[null,null,null,null,null,null,null,0,0,null,null,null,null,0,0]
[null,null,null,null,null,null,null,0,0,null,null,null,null,0,0]
[null,null,null,null,null,null,null,0,0,null,null,null,null,0,0]
[null,null,null,null,null,null,null,0,0,null,null,null,null,0,0]
[null,null,null,null,null,null,null,0,0,null,null,null,null,0,0]
[null,null,null,null,null,null,null,0,0,null,null,null,null,0,0]
[null,null,null,null,null,null,null,0,0,null,null,null,null,0,0]
[null,null,null,null,null,null,null,0,0,null,null,null,null,0,0]
[null,null,null,null,null,null,null,0,0,null,null,null,null,0,0]
[null,null,null,null,null,null,null,0,0,null,null,null,null,0,0]
[null,null,null,null,null,null,null,0,0,null,null,null,null,0,0]
[null,null,null,null,null,null,null,0,0,null,null,null,null,0,0]
[null,null,null,null,null,null,null,0,0,null,null,null,null,0,0]
[null,null,null,null,null,null,null,0,0,null,null,null,null,0,0]
[null,null,null,null,null,null,null,0,0,null,null,null,null,0,0]
[null,null,null,null,null,null,null,0,0,null,null,null,null,0,0]
[null,null,null,null,null,null,null,0,0,null,null,null,null,0,0]
[null,null,null,null,null,null,null,0,0,null,null,null,null,0,0]
[null,null,null,null,null,null,null,0,0,null,null,null,null,0,0]
[null,null,null,null,null,null,null,0,0,null,null,null,null,0,0]
[null,null,null,null,null,null,null,0,0,null,null,null,null,0,0]
[null,null,null,null,null,null,null,0,0,null,null,null,null,0,0]
[null,null,null,null,null,null,null,0,0,null,null,null,null,0,0]
[null,null,null,null,null,null,null,0,0,null,null,null,null,0,0]
[null,null,null,null,null,null,null,0,0,null,null,null,null,0,0]
[null,null,null,null,null,null,null,0,0,null,null,null,null,0,0]
[null,null,null,null,null,null,null,0,0,null,null,null,null,0,0]
[null,null,null,null,null,null,null,0,0,null,null,null,null,0,0]
[null,null,null,null,null,null,null,0,0,null,null,null,null,0,0]
[null,null,null,null,null,null,null,0,0,null,null,null,null,0,0]
[null,null,null,null,null,null,null,0,0,null,null,null,null,0,0]
[null,null,null,null,null,null,null,0,0,null,null,null,null,0,0]
[null,null,null,null,null,null,null,0,0,null,null,null,null,0,0]
[null,null,null,null,null,null,null,{"$f":"(B581+D581)-F581","v":0},{"$f":"(C581+E581)-G581","v":0},null,null,null,null,{"$f":"L581-M581","v":0},{"$f":"L581-K581","v":0}]
[null,null,null,null,null,null,null,0,0,null,null,null,null,0,0]
[null,null,null,null,null,null,null,0,0,null,null,null,null,0,0]
[null,null,null,null,null,null,null,0,0,null,null,null,null,0,0]
[null,null,null,null,null,null,null,0,0,null,null,null,null,0,0]
[null,null,null,null,null,null,null,0,0,null,null,null,null,0,0]
[null,null,null,null,null,null,null,0,0,null,null,null,null,0,0]
[null,null,null,null,null,null,null,0,0,null,null,null,null,0,0]
[null,null,null,null,null,null,null,0,0,null,null,null,null,0,0]
[null,null,null,null,null,null,null,0,0,null,null,null,null,0,0]
[null,null,null,null,null,null,null,0,0,null,null,null,null,0,0]
[null,null,null,null,null,null,null,0,0,null,null,null,null,0,0]
[null,null,null,null,null,null,null,0,0,null,null,null,null,0,0]
[null,null,null,null,null,null,null,0,0,null,null,null,null,0,0]
[null,null,null,null,null,null,null,0,0,null,null,null,null,0,0]
[null,null,null,null,null,null,null,0,0,null,null,null,null,0,0]
[null,null,null,null,null,null,null,0,0,null,null,null,null,0,0]
[null,null,null,null,null,null,null,0,0,null,null,null,null,0,0]
[null,null,null,null,null,null,null,0,0,null,null,null,null,0,0]
[null,null,null,null,null,null,null,0,0,null,null,null,null,0,0]
[null,null,null,null,null,null,null,0,0,null,null,null,null,0,0]
[null,null,null,null,null,null,null,0,0,null,null,null,null,0,0]
[null,null,null,null,null,null,null,0,0,null,null,null,null,0,0]
[null,null,null,null,null,null,null,0,0,null,null,null,null,0,0]
[null,null,null,null,null,null,null,0,0,null,null,null,null,0,0]
[null,null,null,null,null,null,null,0,0,null,null,null,null,0,0]
[null,null,null,null,null,null,null,0,0,null,null,null,null,0,0]
[null,null,null,null,null,null,null,0,0,null,null,null,null,0,0]
[null,null,null,null,null,null,null,0,0,null,null,null,null,0,0]
[null,null,null,null,null,null,null,0,0,null,null,null,null,0,0]
[null,null,null,null,null,null,null,0,0,null,null,null,null,0,0]
[null,null,null,null,null,null,null,0,0,null,null,null,null,0,0]
[null,null,null,null,null,null,null,0,0,null,null,null,null,0,0]
[null,null,null,null,null,null,null,0,0,null,null,null,null,0,0]
[null,null,null,null,null,null,null,0,0,null,null,null,null,0,0]
[null,null,null,null,null,null,null,0,0,null,null,null,null,0,0]
[null,null,null,null,null,null,null,0,0,null,null,null,null,0,0]
[null,null,null,null,null,null,null,0,0]

{"sheet":"Sheet5","index":5,"n_rows":37,"n_cols":9,"rows_kept":37,"cut":false,"hidden":true,"merged":[[0,0,0,5],[4,4,4,6],[31,5,33,6],[4,0,4,3],[2,2,2,5],[3,4,3,5],[1,3,1,6]]}
["kYS bu`k qy mwhvwrI (Abstract)gosvwrw"]
["(jmwq 1vI qo 5vI)",null,null,{"$f":"#REF!","v":{"$error":"#REF!"}}]
[]
[null,null,null,"mhInw",{"$f":"'Bill Print'!H3","v":"May_2025"}]
["kuikMg kwst dI pRpqI (ru ivc)",null,null,null,"Krcy dw vyrvw"]
["imqI","muFlw bkwieAw","pRwpqI","ku`l joV",1,"Bojn krn vwly ku`l ividAwrQIAW dI igxqI",{"$f":"#REF!","v":{"$error":"#REF!"}}]
[1,null,null,null,2,"skUl ivc vrikMg idnW dI igxqI",{"$f":"COUNTIF(#REF!,\">0\")","v":{"$error":"#REF!"}}]
[2,null,null,null,3,{"$f":"\"mwhvwrI rupey \" &#REF! &\"  pRqI b`cw pRqI idn nwl Krcw\"","v":{"$error":"#REF!"}},{"$f":"G6*#REF!","v":{"$error":"#REF!"}}]
[3,null,null,null,null,"ku`k Bytw(qnKwh)"]
[4,null,null,null,4,"kuikMg kwst dI ku`l rkm",null,null,"kuikMg kwst dw muFlw bkwieAW ilKo jI"]
[5,null,null,null,5,"mhIny dy AMq qy kuikMg kwst dI bkwieAW rkm",{"$f":"G10-G8","v":{"$error":"#REF!"}}]
[6,null,null,null,null,"(kwlm 4-3)"]
[7]
[8]
[9,null,null,null,null,"kuikMg kwst dI bkwieAw rkm",{"$f":"G10","v":0}]
[10,null,null,null,null,"Awmdn",null,null,"kuikMg kwst ies pRwpq rkm ilKo jI"]
[11,null,null,null,null,"ku`l Awmdn",{"$f":"G16+G15","v":0}]
[12,null,null,null,null,"ies mhIny dw Krc",{"$f":"G8","v":{"$error":"#REF!"}}]
[13,null,null,null,null,"bkwieAw kuikMg kwst dI rkm",{"$f":"G17-G18","v":{"$error":"#REF!"}}]
[14]
[15]
[16,null,null,null,null,"k`uk Bytw dI ipClI bkwieAw rkm"]
[17,null,null,null,null,"Awmdn"]
[18,null,null,null,null,"ku`l Awmdn"]
[19,null,null,null,null,"ies mhIny dw Krc (qnKwh)"]
[20,null,null,null,null,"bkwieAw ku`k Bytw dI rkm"]
[21]
[22]
[23]
[24]
[25]
[26]
[27]
[28]
[29]
[30]
[31]